Workbook

Sheet Input
A1: Gas PVT Properties
A3: Gas Z-factor calculted from Hall-Yarborough approximation to Standing-Katz chart
A4: Gas viscosities calculated from Lee-Gonzales correlation
A6: Curtis H. Whitson
A7: Sheet 1 - Average Gas Properties
A9: red | B9: Input (different for each application of spreadsheet) | H9: Input (pink numbers) if gas compositional analysis reliable & available.
A10: pink | B10: Optional Input (different for each application of spreadsheet) | H10: Comp. | I10: yi | J10: Mi | K10: SGi | L10: Tci | M10: Pci
A11: green | B11: Input (same for each application of spreadsheet) | I11: mol-% | J11: kg/kmol | K11: water=1 | L11: K | M11: bara
A12: blue | B12: Important Calculated Results
A13: purple | B13: Linked to another cell | H13: N2 | I13: 0 | J13: 28.01 | K13: 469.5 | L13: 126.3 | M13: 33.99
H14: CO2 | I14: 0 | J14: 44.01 | K14: 499.5 | L14: 304.2 | M14: 73.82
A15: Temperature | B15: Input | C15: 102 | D15: C | F15: F | G15: =IF(C15>0,(IF(E15>0,"INPUT ONLY ONE TEMPERATURE, EITHER IN C OR F","")),"") ->  | H15: C1 | I15: 100 | J15: 16.04 | K15: 329.7 | L15: 190.6 | M15: 46.04
A16: Temperature | B16: Used | C16: =IF(C15>0,C15,(E15-32)/1.8) -> 102 | D16: C | E16: =C16*1.8+32 -> 215.6 | F16: F | H16: C2 | I16: 0 | J16: 30.07 | K16: 449.6 | L16: 305.4 | M16: 48.8
A17: Input Specific Gravity | C17: 0.7 | H17: C3 | I17: 0 | J17: 44.1 | K17: 507.2 | L17: 369.8 | M17: 42.49
A18: Specific Gravity | C18: =IF(C17=0,$J$25/28.97,C17) -> 0.7 | D18: air=1 | E18: Sutton Correlations: | H18: iC4 | I18: 0 | J18: 58.12 | K18: 560.7 | L18: 408.2 | M18: 36.48
A19: Tpc | C19: =IF(C17=0,$L$25,E19) -> 209.7722222 | D19: K | E19: =(1/1.8)*(169.2+349.5*$C$18-74*$C$18^2) -> 209.7722222 | F19: K | H19: nC4 | I19: 0 | J19: 58.12 | K19: 583.8 | L19: 425.2 | M19: 37.97
A20: Ppc | C20: =IF(C17=0,$M$25,E20) -> 45.73541914 | D20: bara | E20: =(1/14.50377)*(756.8-131*$C$18-3.6*$C$18^2) -> 45.73541914 | F20: bara | H20: iC5 | I20: 0 | J20: 72.15 | K20: 626.8 | L20: 460.4 | M20: 33.81
H21: nC5 | I21: 0 | J21: 72.15 | K21: 629.5 | L21: 469.7 | M21: 33.69
A22: Pmax | B22: Input | C22: 1000 | D22: bara | F22: psia | H22: C6 | I22: 0 | J22: 82.32 | K22: 659.7 | L22: 507.4 | M22: 30.12
A23: Pincrement | B23: Input | C23: 25 | D23: bar | F23: psi | H23: C7+ | I23: 0 | J23: 140 | K23: 780 | L23: =(1/1.8)*(608+364*LOG(J23-71.2)+(2450*LOG(J23)-3800)*LOG(K23/1000)) -> 621.9748029 | M23: =(1/14.50377)*(1188-431*LOG(J23-61.1)+(2319-852*LOG(J23-53.7))*(K23/1000-0.8)) -> 24.6121826
A24: Pmax | B24: Used | C24: =IF(C22>0,C22,E22/14.50377) -> 1000 | D24: bara | E24: =C24*14.50377 -> 14503.77 | F24: psia
A25: Pincrement | B25: Used | C25: =IF(C23>0,C23,E23/14.50377) -> 25 | D25: bar | E25: =C25*14.50377 -> 362.59425 | F25: psi | H25: Total | I25: =SUM(I13:I23) -> 100 | J25: =SUMPRODUCT($I13:$I23,J13:J23)/SUM($I13:$I23) -> 16.04 | L25: =SUMPRODUCT($I13:$I23,L13:L23)/SUM($I13:$I23) -> 190.6 | M25: =SUMPRODUCT($I13:$I23,M13:M23)/SUM($I13:$I23) -> 46.04
A26: Pmin | C26: ='Calcs-SI'!A100 -> 1 | D26: bar | E26: =C26*14.50377 -> 14.50377 | F26: psia

Sheet Calcs-SI
A1: Gas PVT Properties
A3: Curtis H. Whitson
A4: Sheet 2 - Gas PVT f(p)
A5: SI UNITS
A7: Gravity | B7: =Input!$C$18 -> 0.7 | C7: (air=1) | F7: Lee et al.
A8: Tpc | B8: =Input!$C$19 -> 209.7722222 | C8: K | F8: A1 | G8: =0.0001*(9.379+0.46555*$B$7)*($B$10*1.8)^1.5/(209.2+558*$B$7+$B$10*1.8) -> 0.01335588127
A9: Ppc | B9: =Input!$C$20 -> 45.73541914 | C9: bara | F9: A2 | G9: =3.448+(986.4/(1.8*$B$10))+0.29231*$B$7 -> 5.113366034
A10: TR | B10: =Input!C16+273.15 -> 375.15 | C10: K | F10: A3 | G10: =2.447-0.2224*G9 -> 1.309787394
A11: Tpr | B11: =$B$10/$B$8 -> 1.788368336
G15: Lee et al.
E16: Inverse | F16: Density | G16: Viscosity | L16: Delta pp
A17: p | B17: ppr | C17: Z | D17: Bg | E17: bg=1/Bg | F17: dg | G17: ug | H17: ugZ | I17: p/Z | J17: p/uZ | K17: 1/ugBg | L17: 2(p/uZ)dp | M17: pp | N17: cg | O17: dZ/dp
A18: bara | D18: m3/Sm3 | E18: Sm3/m3 | F18: g/cm3 | G18: mPa-s | H18: mPa-s | I18: bara | J18: bara/mPa-s | K18: 1/mPa-s | L18: bar2/mPa-s | M18: bar2/mPa-s | N18: 1/bar | O18: 1/bar
A20: =Input!C24 -> 1000 | B20: =A20/$B$9 -> 21.864892 | C20: =Zfac($B$11,B20) -> 1.815432423 | D20: =(1.0135/(273.15+15.56))*(C20*$B$10/A20) -> 0.002390820465 | E20: =1/D20 -> 418.2664548 | F20: =deng_kgm3(A20,Input!$C$16,$B$7*28.97,C20)/1000 -> 0.3581259621 | G20: =visg_cp(F20*1000,Input!$C$16,$B$7*28.97) -> 0.05061435244 | H20: =G20*C20 -> 0.09188693651 | I20: =A20/C20 -> 550.8329515 | J20: =I20/G20 -> 10882.93982 | K20: =1/G20/D20 -> 8263.791486 | L20: =IF(A20>1,2*0.5*(J20+J21)*(A20-A21),0) -> 545767.3615 | M20: =IF(A20>1,M21+L20,L20) -> 21573892.32 | N20: =cg(A20,C20,O20) -> 0.0003168143253 | O20: =dzdp($B$11,B20,$B$9,C20) -> 0.001240277425
A21: =MAX(1,A20-Input!$C$25) -> 975 | B21: 21.3182697 | C21: =Zfac($B$11,B21) -> 1.784389134 | D21: =(1.0135/(273.15+15.56))*(C21*$B$10/A21) -> 0.002410193059 | E21: 414.9045224 | F21: =deng_kgm3(A21,Input!$C$16,$B$7*28.97,C21)/1000 -> 0.3552474255 | G21: =visg_cp(F21*1000,Input!$C$16,$B$7*28.97) -> 0.04991027815 | H21: =G21*C21 -> 0.08905935801 | I21: =A21/C21 -> 546.4054793 | J21: =I21/G21 -> 10947.75464 | K21: =1/G21/D21 -> 8313.007617 | L21: =IF(A21>1,2*0.5*(J21+J22)*(A21-A22),0) -> 549038.4003 | M21: =IF(A21>1,M22+L21,L21) -> 21028124.96 | N21: =cg(A21,C21,O21) -> 0.0003289436122 | O21: =dzdp($B$11,B21,$B$9,C21) -> 0.001243179294
A22: =MAX(1,A21-Input!$C$25) -> 950 | B22: 20.7716474 | C22: 1.753273839 | D22: 0.002430485444 | E22: 411.4404398 | F22: =deng_kgm3(A22,Input!$C$16,$B$7*28.97,C22)/1000 -> 0.3522814264 | G22: =visg_cp(F22*1000,Input!$C$16,$B$7*28.97) -> 0.04919686189 | H22: 0.08625557092 | I22: 541.8434809 | J22: 11013.78137 | K22: 8363.143989 | L22: 552370.3794 | M22: 20479086.56 | N22: 0.0003419408767 | O22: 0.001246035416
A23: =MAX(1,A22-Input!$C$25) -> 925 | B23: 20.2250251 | C23: 1.722087878 | D23: 0.002451774107 | E23: 407.8679179 | F23: =deng_kgm3(A23,Input!$C$16,$B$7*28.97,C23)/1000 -> 0.34922258 | G23: =visg_cp(F23*1000,Input!$C$16,$B$7*28.97) -> 0.04847369692 | H23: 0.08347596588 | I23: 537.1386743 | J23: 11081.03381 | K23: 8414.211083 | L23: 555763.868 | M23: 19926716.18 | N23: 0.0003558976382 | O23: 0.001248829617
A24: =MAX(1,A23-Input!$C$25) -> 900 | B24: 19.6784028 | C24: 1.690833034 | D24: 0.002474144678 | E24: 404.1800824 | F24: =deng_kgm3(A24,Input!$C$16,$B$7*28.97,C24)/1000 -> 0.3460650005 | G24: =visg_cp(F24*1000,Input!$C$16,$B$7*28.97) -> 0.04774034781 | H24: 0.08072095715 | I24: 532.2820064 | J24: 11149.52091 | K24: 8466.215706 | L24: 559219.1567 | M24: 19370952.31 | N24: 0.000370918236 | O24: 0.001251542565
A25: =MAX(1,A24-Input!$C$25) -> 875 | B25: 19.1317805 | C25: 1.659511613 | D25: 0.002497693364 | E25: 400.3694025 | F25: =deng_kgm3(A25,Input!$C$16,$B$7*28.97,C25)/1000 -> 0.3428022396 | G25: =visg_cp(F25*1000,Input!$C$16,$B$7*28.97) -> 0.04699634803 | H25: 0.07799098535 | I25: 527.2635593 | J25: 11219.24535 | K25: 8519.159877 | L25: 562736.1786 | M25: 18811733.16 | N25: 0.0003871220739 | O25: 0.001254151124
A26: =MAX(1,A25-Input!$C$25) -> 850 | B26: 18.5851582 | C26: 1.628126578 | D26: 0.002522528706 | E26: 396.4275997 | F26: =deng_kgm3(A26,Input!$C$16,$B$7*28.97,C26)/1000 -> 0.3394272093 | G26: =visg_cp(F26*1000,Input!$C$16,$B$7*28.97) -> 0.04624119573 | H26: 0.07528651975 | I26: 522.0724308 | J26: 11290.20179 | K26: 8573.039546 | L26: 566314.4042 | M26: 18248996.98 | N26: 0.0004046463752 | O26: 0.001256627514
A27: =MAX(1,A26-Input!$C$25) -> 825 | B27: 18.0385359 | C27: 1.596681621 | D27: 0.002548773569 | E27: 392.3455627 | F27: =deng_kgm3(A27,Input!$C$16,$B$7*28.97,C27)/1000 -> 0.3359321086 | G27: =visg_cp(F27*1000,Input!$C$16,$B$7*28.97) -> 0.04547435289 | H27: 0.07260806347 | I27: 516.6966221 | J27: 11362.37438 | K27: 8627.842681 | L27: 569952.7114 | M27: 17682682.57 | N27: 0.0004236494509 | O27: 0.00125893837
A28: =MAX(1,A27-Input!$C$25) -> 800 | B28: 17.4919136 | C28: 1.565181372 | D28: 0.002576567715 | E28: 388.1132229 | F28: =deng_kgm3(A28,Input!$C$16,$B$7*28.97,C28)/1000 -> 0.3323083163 | G28: =visg_cp(F28*1000,Input!$C$16,$B$7*28.97) -> 0.04469523947 | H28: 0.06995615624 | I28: 511.1228731 | J28: 11435.73408 | K28: 8683.547231 | L28: 573649.2242 | M28: 17112729.86 | N28: 0.0004443148185 | O28: 0.001261043438
A29: =MAX(1,A28-Input!$C$25) -> 775 | B29: 16.9452913 | C29: 1.533631567 | D29: 0.00260607082 | E29: 383.7194263 | F29: =deng_kgm3(A29,Input!$C$16,$B$7*28.97,C29)/1000 -> 0.3285462822 | G29: =visg_cp(F29*1000,Input!$C$16,$B$7*28.97) -> 0.04390323044 | H29: 0.06733138008 | I29: 505.3364947 | J29: 11510.23489 | K29: 8740.118264 | L29: 577401.1008 | M29: 16539080.64 | N29: 0.0004668561927 | O29: 0.001262894046
A30: =MAX(1,A29-Input!$C$25) -> 750 | B30: 16.398669 | C30: 1.502039279 | D30: 0.002637466205 | E30: 379.1517776 | F30: =deng_kgm3(A30,Input!$C$16,$B$7*28.97,C30)/1000 -> 0.3246353934 | G30: =visg_cp(F30*1000,Input!$C$16,$B$7*28.97) -> 0.04309765136 | H30: 0.06473436518 | I30: 499.3211632 | J30: 11585.80914 | K30: 8797.504403 | L30: 581204.2664 | M30: 15961679.54 | N30: 0.000491523702 | O30: 0.001264431132
A31: =MAX(1,A30-Input!$C$25) -> 725 | B31: 15.8520467 | C31: 1.470413218 | D31: 0.002670965439 | E31: 374.3964581 | F31: =deng_kgm3(A31,Input!$C$16,$B$7*28.97,C31)/1000 -> 0.3205638181 | G31: =visg_cp(F31*1000,Input!$C$16,$B$7*28.97) -> 0.04227777361 | H31: 0.06216579713 | I31: 493.0586799 | J31: 11662.36151 | K31: 8855.633258 | L31: 585053.0685 | M31: 15380475.27 | N31: 0.000518611637 | O31: 0.001265582756
A32: =MAX(1,A31-Input!$C$25) -> 700 | B32: 15.3054244 | C32: 1.438764077 | D32: 0.002706814056 | E32: 369.4380106 | F32: =deng_kgm3(A32,Input!$C$16,$B$7*28.97,C32)/1000 -> 0.3163183216 | G32: =visg_cp(F32*1000,Input!$C$16,$B$7*28.97) -> 0.04144280956 | H32: 0.05962642566 | I32: 486.5286887 | J32: 11739.76123 | K32: 8914.405528 | L32: 588939.8329 | M32: 14795422.2 | N32: 0.0005484681737 | O32: 0.001266260948
A33: =MAX(1,A32-Input!$C$25) -> 675 | B33: 14.7588021 | C33: 1.407105009 | D33: 0.002745298756 | E33: 364.2590803 | F33: =deng_kgm3(A33,Input!$C$16,$B$7*28.97,C33)/1000 -> 0.3118840444 | G33: =visg_cp(F33*1000,Input!$C$16,$B$7*28.97) -> 0.04059190642 | H33: 0.05711707485 | I33: 479.7083343 | J33: 11817.83209 | K33: 8973.687427 | L33: 592854.2847 | M33: 14206482.37 | N33: 0.0005815076958 | O33: 0.001266357622
A34: =MAX(1,A33-Input!$C$25) -> 650 | B34: 14.2121798 | C34: 1.375452149 | D34: 0.002786756396 | E34: 358.8401202 | F34: =deng_kgm3(A34,Input!$C$16,$B$7*28.97,C34)/1000 -> 0.3072442502 | G34: =visg_cp(F34*1000,Input!$C$16,$B$7*28.97) -> 0.03972414225 | H34: 0.0546386568 | I34: 472.5718744 | J34: 11896.3393 | K34: 9033.300656 | L34: 596782.7927 | M34: 13613628.09 | N34: 0.0006182263891 | O34: 0.001265739413
A35: =MAX(1,A34-Input!$C$25) -> 625 | B35: 13.6655575 | C35: 1.343825364 | D35: 0.00283158559 | E35: 353.1590228 | F35: =deng_kgm3(A35,Input!$C$16,$B$7*28.97,C35)/1000 -> 0.30238001 | G35: =visg_cp(F35*1000,Input!$C$16,$B$7*28.97) -> 0.0388385191 | H35: 0.05219218705 | I35: 465.0901947 | J35: 11974.97241 | K35: 9093.009492 | L35: 600707.3788 | M35: 13016845.29 | N35: 0.0006592223502 | O35: 0.001264240867
A36: =MAX(1,A35-Input!$C$25) -> 600 | B36: 13.1189352 | C36: 1.312249146 | D36: 0.002880261542 | E36: 347.1906927 | F36: =deng_kgm3(A36,Input!$C$16,$B$7*28.97,C36)/1000 -> 0.297269837 | G36: =visg_cp(F36*1000,Input!$C$16,$B$7*28.97) -> 0.03793395862 | H36: 0.04977880481 | I36: 457.230246 | J36: 12053.32274 | K36: 9152.503598 | L36: 604604.4025 | M36: 12416137.91 | N36: 0.0007052214638 | O36: 0.001261655647
A37: =MAX(1,A36-Input!$C$25) -> 575 | B37: 12.5723129 | C37: 1.280753775 | D37: 0.002933355349 | E37: 340.9065323 | F37: =deng_kgm3(A37,Input!$C$16,$B$7*28.97,C37)/1000 -> 0.2918892454 | G37: =visg_cp(F37*1000,Input!$C$16,$B$7*28.97) -> 0.03700929799 | H37: 0.0473997981 | I37: 448.9543668 | J37: 12130.85336 | K37: 9211.375271 | L37: 608442.8101 | M37: 11811533.51 | N37: 0.0007571110898 | O37: 0.001257724983
A38: =MAX(1,A37-Input!$C$25) -> 550 | B38: 12.0256906 | C38: 1.249376796 | D38: 0.00299155935 | E38: 334.2738295 | F38: =deng_kgm3(A38,Input!$C$16,$B$7*28.97,C38)/1000 -> 0.2862102265 | G38: =visg_cp(F38*1000,Input!$C$16,$B$7*28.97) -> 0.03606328832 | H38: 0.04505663561 | I38: 440.2194773 | J38: 12206.85905 | K38: 9269.089011 | L38: 612181.7892 | M38: 11203090.7 | N38: 0.0008159841682 | O38: 0.001252122489
A39: =MAX(1,A38-Input!$C$25) -> 525 | B39: 11.4790683 | C39: 1.218165002 | D39: 0.00305572095 | E39: 327.2550132 | F39: =deng_kgm3(A39,Input!$C$16,$B$7*28.97,C39)/1000 -> 0.2802006116 | G39: =visg_cp(F39*1000,Input!$C$16,$B$7*28.97) -> 0.03509459457 | H39: 0.04275100686 | I39: 430.9760985 | J39: 12280.41252 | K39: 9324.9407 | L39: 615767.5921 | M39: 10590908.91 | N39: 0.0008831975373 | O39: 0.00124443396
A40: =MAX(1,A39-Input!$C$25) -> 500 | B40: 10.932446 | C40: 1.187176854 | D40: 0.003126887766 | E40: 319.8068094 | F40: =deng_kgm3(A40,Input!$C$16,$B$7*28.97,C40)/1000 -> 0.2738233487 | G40: =visg_cp(F40*1000,Input!$C$16,$B$7*28.97) -> 0.03410180662 | H40: 0.04048487549 | I40: 421.167241 | J40: 12350.29116 | K40: 9378.001962 | L40: 619129.2217 | M40: 9975141.32 | N40: 0.0009604489677 | O40: 0.001234130924
A41: =MAX(1,A40-Input!$C$25) -> 475 | B41: =A41/$B$9 -> 10.3858237 | C41: =Zfac($B$11,B41) -> 1.156485842 | D41: =(1.0135/(273.15+15.56))*(C41*$B$10/A41) -> 0.003206369642 | E41: =1/D41 -> 311.8792004 | F41: =deng_kgm3(A41,Input!$C$16,$B$7*28.97,C41)/1000 -> 0.2670356119 | G41: =visg_cp(F41*1000,Input!$C$16,$B$7*28.97) -> 0.03308345389 | H41: =G41*C41 -> 0.03826054604 | I41: =A41/C41 -> 410.7270342 | J41: =I41/G41 -> 12414.87771 | K41: =1/G41/D41 -> 9427.044752 | L41: =IF(A41>1,2*0.5*(J41+J42)*(A41-A42),0) -> 622172.5334 | M41: =IF(A41>1,M42+L41,L41) -> 9356012.099 | N41: =cg(A41,C41,O41) -> 0.001049880439 | O41: =dzdp($B$11,B41,$B$9,C41) -> 0.001220535173
A42: =MAX(1,A41-Input!$C$25) -> 450 | B42: 9.8392014 | C42: 1.12618475 | D42: 0.003295823952 | E42: 303.4142644 | F42: =deng_kgm3(A42,Input!$C$16,$B$7*28.97,C42)/1000 -> 0.2597878077 | G42: =visg_cp(F42*1000,Input!$C$16,$B$7*28.97) -> 0.03203804053 | H42: 0.03608075268 | I42: 399.5791985 | J42: 12472.02363 | K42: 9470.437622 | L42: 624772.1225 | M42: 8733839.565 | N42: 0.001154216032 | O42: 0.001202772285
A43: =MAX(1,A42-Input!$C$25) -> 425 | B43: 9.2925791 | C43: 1.09639129 | D43: 0.003397375291 | E43: 294.3448734 | F43: =deng_kgm3(A43,Input!$C$16,$B$7*28.97,C43)/1000 -> 0.2520224603 | G43: =visg_cp(F43*1000,Input!$C$16,$B$7*28.97) -> 0.03096410464 | H43: 0.03394877463 | I43: 387.6353304 | J43: 12518.86127 | K43: 9506.003059 | L43: 626760.1534 | M43: 8109067.443 | N43: 0.001276946804 | O43: 0.001179710859
A44: =MAX(1,A43-Input!$C$25) -> 400 | B44: 8.7459568 | C44: 1.067255458 | D44: 0.003513785694 | E44: 284.5933381 | F44: =deng_kgm3(A44,Input!$C$16,$B$7*28.97,C44)/1000 -> 0.2436730506 | G44: =visg_cp(F44*1000,Input!$C$16,$B$7*28.97) -> 0.02986031769 | H44: 0.03186858704 | I44: 374.7931172 | J44: 12551.54487 | K44: 9530.820839 | L44: 627910.9891 | M44: 7482307.289 | N44: 0.001422577565 | O44: 0.001149884974
A45: =MAX(1,A44-Input!$C$25) -> 375 | B45: 8.1993345 | C45: 1.038969057 | D45: 0.003648700555 | E45: 274.0701751 | F45: =deng_kgm3(A45,Input!$C$16,$B$7*28.97,C45)/1000 -> 0.2346629619 | G45: =visg_cp(F45*1000,Input!$C$16,$B$7*28.97) -> 0.02872564579 | H45: 0.02984505712 | I45: 360.9347145 | J45: 12564.8947 | K45: 9540.957829 | L45: 627920.1997 | M45: 6854396.3 | N45: 0.00159695304 | O45: 0.001111399358
A46: =MAX(1,A45-Input!$C$25) -> 350 | B46: 7.6527122 | C46: 1.011777737 | D46: 0.003807009421 | E46: 262.6733715 | F46: =deng_kgm3(A46,Input!$C$16,$B$7*28.97,C46)/1000 -> 0.224904849 | G46: =visg_cp(F46*1000,Input!$C$16,$B$7*28.97) -> 0.0275596054 | H46: 0.02788419518 | I46: 345.9257773 | J46: 12551.91329 | K46: 9531.100595 | L46: 626376.391 | M46: 6226476.1 | N46: 0.001807680162 | O46: 0.001061822991
A47: =MAX(1,A46-Input!$C$25) -> 325 | B47: 7.1060899 | C47: 0.985995671 | D47: 0.003995383984 | E47: 250.2888343 | F47: =deng_kgm3(A47,Input!$C$16,$B$7*28.97,C47)/1000 -> 0.2143010241 | G47: =visg_cp(F47*1000,Input!$C$16,$B$7*28.97) -> 0.02636265687 | H47: 0.02599346555 | I47: 329.6160516 | J47: 12503.14235 | K47: 9494.067141 | L47: 622724.7028 | M47: 5600099.709 | N47: 0.002064655644 | O47: 0.000998091307
A48: =MAX(1,A47-Input!$C$25) -> 300 | B48: 6.5594676 | C48: 0.9620221116 | D48: 0.004223093302 | E48: 236.7932528 | F48: =deng_kgm3(A48,Input!$C$16,$B$7*28.97,C48)/1000 -> 0.2027459064 | G48: =visg_cp(F48*1000,Input!$C$16,$B$7*28.97) -> 0.02513679036 | H48: 0.02418214814 | I48: 311.8431441 | J48: 12405.84576 | K48: 9420.186484 | L48: 616222.6333 | M48: 4977375.007 | N48: 0.002380686504 | O48: 0.0009164673139
A49: =MAX(1,A48-Input!$C$25) -> 275 | B49: 6.0128453 | C49: 0.9403570785 | D49: 0.004503259577 | E49: 222.061372 | F49: =deng_kgm3(A49,Input!$C$16,$B$7*28.97,C49)/1000 -> 0.1901322508 | G49: =visg_cp(F49*1000,Input!$C$16,$B$7*28.97) -> 0.02388635778 | H49: 0.02246170562 | I49: 292.4421013 | J49: 12243.05957 | K49: 9296.577318 | L49: 605893.5879 | M49: 4361152.373 | N49: 0.002772153349 | O49: 0.0008126662612
A50: =MAX(1,A49-Input!$C$25) -> 250 | B50: 5.466223 | C50: 0.9216102291 | D50: 0.004854831429 | E50: 205.9803753 | F50: =deng_kgm3(A50,Input!$C$16,$B$7*28.97,C50)/1000 -> 0.1763634622 | G50: =visg_cp(F50*1000,Input!$C$16,$B$7*28.97) -> 0.02261915277 | H50: 0.02084604257 | I50: 271.2643503 | J50: 11992.68394 | K50: 9106.458469 | L50: 590493.2897 | M50: 3755258.785 | N50: 0.003259640894 | O50: 0.0006823225254
A51: =MAX(1,A50-Input!$C$25) -> 225 | B51: 4.9196007 | C51: 0.9064912453 | D51: 0.005305764543 | E51: 188.4742513 | F51: =deng_kgm3(A51,Input!$C$16,$B$7*28.97,C51)/1000 -> 0.1613744583 | G51: =visg_cp(F51*1000,Input!$C$16,$B$7*28.97) -> 0.02134761943 | H51: 0.01935143012 | I51: 248.2097882 | J51: 11627.04765 | K51: 8828.81822 | L51: 568519.5634 | M51: 3164765.496 | N51: 0.003868562735 | O51: 0.0005220317276
A52: =MAX(1,A51-Input!$C$25) -> 200 | B52: 4.3729784 | C52: 0.8957654138 | D52: 0.005898358583 | E52: 169.5386921 | F52: =deng_kgm3(A52,Input!$C$16,$B$7*28.97,C52)/1000 -> 0.1451615508 | G52: =visg_cp(F52*1000,Input!$C$16,$B$7*28.97) -> 0.02008980276 | H52: 0.01799575048 | I52: 223.2727419 | J52: 11113.73489 | K52: 8439.042143 | L52: 538310.9028 | M52: 2596245.932 | N52: 0.004630382432 | O52: 0.0003310906335
A53: =MAX(1,A52-Input!$C$25) -> 175 | B53: 3.8263561 | C53: 0.8901599419 | D53: 0.006698797894 | E53: 149.2805151 | F53: =deng_kgm3(A53,Input!$C$16,$B$7*28.97,C53)/1000 -> 0.1278161982 | G53: =visg_cp(F53*1000,Input!$C$16,$B$7*28.97) -> 0.01886932732 | H53: 0.01679671931 | I53: 196.5938836 | J53: 10418.70122 | K53: 7911.279112 | L53: 498274.3529 | M53: 2057935.03 | N53: 0.005586699554 | O53: 0.0001135720894
A54: =MAX(1,A53-Input!$C$25) -> 150 | B54: 3.2797338 | C54: 0.8902258704 | D54: 0.007815843037 | E54: 127.9452511 | F54: =deng_kgm3(A54,Input!$C$16,$B$7*28.97,C54)/1000 -> 0.1095486277 | G54: =visg_cp(F54*1000,Input!$C$16,$B$7*28.97) -> 0.01771359647 | H54: 0.01576910184 | I54: 168.4965636 | J54: 9512.272895 | K54: 7222.996826 | L54: 447232.8105 | M54: 1559660.677 | N54: 0.006801990756 | O54: -0.0001204690056
A55: =MAX(1,A54-Input!$C$25) -> 125 | B55: 2.7331115 | C55: 0.8961980984 | D55: 0.0094419323 | E55: 105.9105243 | F55: =deng_kgm3(A55,Input!$C$16,$B$7*28.97,C55)/1000 -> 0.09068216674 | G55: =visg_cp(F55*1000,Input!$C$16,$B$7*28.97) -> 0.01665004572 | H55: 0.01492173931 | I55: 139.4780911 | J55: 8377.039526 | K55: 6360.974983 | L55: 384791.6758 | M55: 1112427.866 | N55: 0.008397507145 | O55: -0.0003562451479
A56: =MAX(1,A55-Input!$C$25) -> 100 | B56: 2.1864892 | C56: 0.9079219954 | D56: 0.01195681238 | E56: 83.63433064 | F56: =deng_kgm3(A56,Input!$C$16,$B$7*28.97,C56)/1000 -> 0.0716089583 | G56: =visg_cp(F56*1000,Input!$C$16,$B$7*28.97) -> 0.01570170627 | H56: 0.01425592449 | I56: 110.1416206 | J56: 7014.627504 | K56: 5326.448554 | L56: 311565.6911 | M56: 727636.1903 | N56: 0.01063685849 | O56: -0.0005782178333
A57: =MAX(1,A56-Input!$C$25) -> 75 | B57: 1.6398669 | C57: 0.9248948679 | D57: 0.01624044718 | E57: 61.57465918 | F57: =deng_kgm3(A57,Input!$C$16,$B$7*28.97,C57)/1000 -> 0.05272113937 | G57: =visg_cp(F57*1000,Input!$C$16,$B$7*28.97) -> 0.01488441546 | H57: 0.01376651947 | I57: 81.09029751 | J57: 5448.00014 | K57: 4136.854373 | L57: 229162.9758 | M57: 416070.4992 | N57: 0.01417096402 | O57: -0.0007747203218
A58: =MAX(1,A57-Input!$C$25) -> 50 | B58: 1.0932446 | C58: 0.9463997683 | D58: 0.0249270852 | E58: 40.11700494 | F58: =deng_kgm3(A58,Input!$C$16,$B$7*28.97,C58)/1000 -> 0.03434877654 | G58: =visg_cp(F58*1000,Input!$C$16,$B$7*28.97) -> 0.01420775262 | H58: 0.01344621379 | I58: 52.83179654 | J58: 3718.518892 | K58: 2823.599622 | L58: 139976.2942 | M58: 186907.5234 | N58: 0.02099370198 | O58: -0.0009404393235
A59: =MAX(1,A58-Input!$C$25) -> 25 | B59: 0.5466223 | C59: 0.9716650342 | D59: 0.05118508669 | E59: 19.53694064 | F59: =deng_kgm3(A59,Input!$C$16,$B$7*28.97,C59)/1000 -> 0.01672781927 | G59: =visg_cp(F59*1000,Input!$C$16,$B$7*28.97) -> 0.01368177688 | H59: 0.0132941042 | I59: 25.72903122 | J59: 1880.532876 | K59: 1427.95346 | L59: 46931.22927 | M59: 46931.22927 | N59: 0.04110747324 | O59: -0.001076093026
A60: =MAX(1,A59-Input!$C$25) -> 1 | B60: 0.021864892 | C60: 0.9988144848 | D60: 1.315381438 | E60: 0.7602357547 | F60: =deng_kgm3(A60,Input!$C$16,$B$7*28.97,C60)/1000 -> 0.0006509251648 | G60: =visg_cp(F60*1000,Input!$C$16,$B$7*28.97) -> 0.0133607364 | H60: 0.01334489704 | I60: 1.001186922 | J60: 74.9350105 | K60: 56.9007375 | L60: 0 | M60: 0 | N60: 1.001184827 | O60: -0.001183422385
A61: =MAX(1,A60-Input!$C$25) -> 1 | B61: 0.021864892 | C61: 0.9988144848 | D61: 1.315381438 | E61: 0.7602357547 | F61: =deng_kgm3(A61,Input!$C$16,$B$7*28.97,C61)/1000 -> 0.0006509251648 | G61: =visg_cp(F61*1000,Input!$C$16,$B$7*28.97) -> 0.0133607364 | H61: 0.01334489704 | I61: 1.001186922 | J61: 74.9350105 | K61: 56.9007375 | L61: 0 | M61: 0 | N61: 1.001184827 | O61: -0.001183422385
A62: =MAX(1,A61-Input!$C$25) -> 1 | B62: 0.021864892 | C62: 0.9988144848 | D62: 1.315381438 | E62: 0.7602357547 | F62: =deng_kgm3(A62,Input!$C$16,$B$7*28.97,C62)/1000 -> 0.0006509251648 | G62: =visg_cp(F62*1000,Input!$C$16,$B$7*28.97) -> 0.0133607364 | H62: 0.01334489704 | I62: 1.001186922 | J62: 74.9350105 | K62: 56.9007375 | L62: 0 | M62: 0 | N62: 1.001184827 | O62: -0.001183422385
A63: =MAX(1,A62-Input!$C$25) -> 1 | B63: 0.021864892 | C63: 0.9988144848 | D63: 1.315381438 | E63: 0.7602357547 | F63: =deng_kgm3(A63,Input!$C$16,$B$7*28.97,C63)/1000 -> 0.0006509251648 | G63: =visg_cp(F63*1000,Input!$C$16,$B$7*28.97) -> 0.0133607364 | H63: 0.01334489704 | I63: 1.001186922 | J63: 74.9350105 | K63: 56.9007375 | L63: 0 | M63: 0 | N63: 1.001184827 | O63: -0.001183422385
A64: =MAX(1,A63-Input!$C$25) -> 1 | B64: 0.021864892 | C64: 0.9988144848 | D64: 1.315381438 | E64: 0.7602357547 | F64: =deng_kgm3(A64,Input!$C$16,$B$7*28.97,C64)/1000 -> 0.0006509251648 | G64: =visg_cp(F64*1000,Input!$C$16,$B$7*28.97) -> 0.0133607364 | H64: 0.01334489704 | I64: 1.001186922 | J64: 74.9350105 | K64: 56.9007375 | L64: 0 | M64: 0 | N64: 1.001184827 | O64: -0.001183422385
A65: =MAX(1,A64-Input!$C$25) -> 1 | B65: 0.021864892 | C65: 0.9988144848 | D65: 1.315381438 | E65: 0.7602357547 | F65: =deng_kgm3(A65,Input!$C$16,$B$7*28.97,C65)/1000 -> 0.0006509251648 | G65: =visg_cp(F65*1000,Input!$C$16,$B$7*28.97) -> 0.0133607364 | H65: 0.01334489704 | I65: 1.001186922 | J65: 74.9350105 | K65: 56.9007375 | L65: 0 | M65: 0 | N65: 1.001184827 | O65: -0.001183422385
A66: =MAX(1,A65-Input!$C$25) -> 1 | B66: 0.021864892 | C66: 0.9988144848 | D66: 1.315381438 | E66: 0.7602357547 | F66: =deng_kgm3(A66,Input!$C$16,$B$7*28.97,C66)/1000 -> 0.0006509251648 | G66: =visg_cp(F66*1000,Input!$C$16,$B$7*28.97) -> 0.0133607364 | H66: 0.01334489704 | I66: 1.001186922 | J66: 74.9350105 | K66: 56.9007375 | L66: 0 | M66: 0 | N66: 1.001184827 | O66: -0.001183422385
A67: =MAX(1,A66-Input!$C$25) -> 1 | B67: 0.021864892 | C67: 0.9988144848 | D67: 1.315381438 | E67: 0.7602357547 | F67: =deng_kgm3(A67,Input!$C$16,$B$7*28.97,C67)/1000 -> 0.0006509251648 | G67: =visg_cp(F67*1000,Input!$C$16,$B$7*28.97) -> 0.0133607364 | H67: 0.01334489704 | I67: 1.001186922 | J67: 74.9350105 | K67: 56.9007375 | L67: 0 | M67: 0 | N67: 1.001184827 | O67: -0.001183422385
A68: =MAX(1,A67-Input!$C$25) -> 1 | B68: 0.021864892 | C68: 0.9988144848 | D68: 1.315381438 | E68: 0.7602357547 | F68: =deng_kgm3(A68,Input!$C$16,$B$7*28.97,C68)/1000 -> 0.0006509251648 | G68: =visg_cp(F68*1000,Input!$C$16,$B$7*28.97) -> 0.0133607364 | H68: 0.01334489704 | I68: 1.001186922 | J68: 74.9350105 | K68: 56.9007375 | L68: 0 | M68: 0 | N68: 1.001184827 | O68: -0.001183422385
A69: =MAX(1,A68-Input!$C$25) -> 1 | B69: 0.021864892 | C69: 0.9988144848 | D69: 1.315381438 | E69: 0.7602357547 | F69: =deng_kgm3(A69,Input!$C$16,$B$7*28.97,C69)/1000 -> 0.0006509251648 | G69: =visg_cp(F69*1000,Input!$C$16,$B$7*28.97) -> 0.0133607364 | H69: 0.01334489704 | I69: 1.001186922 | J69: 74.9350105 | K69: 56.9007375 | L69: 0 | M69: 0 | N69: 1.001184827 | O69: -0.001183422385
A70: =MAX(1,A69-Input!$C$25) -> 1 | B70: 0.021864892 | C70: 0.9988144848 | D70: 1.315381438 | E70: 0.7602357547 | F70: =deng_kgm3(A70,Input!$C$16,$B$7*28.97,C70)/1000 -> 0.0006509251648 | G70: =visg_cp(F70*1000,Input!$C$16,$B$7*28.97) -> 0.0133607364 | H70: 0.01334489704 | I70: 1.001186922 | J70: 74.9350105 | K70: 56.9007375 | L70: 0 | M70: 0 | N70: 1.001184827 | O70: -0.001183422385
A71: =MAX(1,A70-Input!$C$25) -> 1 | B71: 0.021864892 | C71: 0.9988144848 | D71: 1.315381438 | E71: 0.7602357547 | F71: =deng_kgm3(A71,Input!$C$16,$B$7*28.97,C71)/1000 -> 0.0006509251648 | G71: =visg_cp(F71*1000,Input!$C$16,$B$7*28.97) -> 0.0133607364 | H71: 0.01334489704 | I71: 1.001186922 | J71: 74.9350105 | K71: 56.9007375 | L71: 0 | M71: 0 | N71: 1.001184827 | O71: -0.001183422385
A72: =MAX(1,A71-Input!$C$25) -> 1 | B72: 0.021864892 | C72: 0.9988144848 | D72: 1.315381438 | E72: 0.7602357547 | F72: =deng_kgm3(A72,Input!$C$16,$B$7*28.97,C72)/1000 -> 0.0006509251648 | G72: =visg_cp(F72*1000,Input!$C$16,$B$7*28.97) -> 0.0133607364 | H72: 0.01334489704 | I72: 1.001186922 | J72: 74.9350105 | K72: 56.9007375 | L72: 0 | M72: 0 | N72: 1.001184827 | O72: -0.001183422385
A73: =MAX(1,A72-Input!$C$25) -> 1 | B73: 0.021864892 | C73: 0.9988144848 | D73: 1.315381438 | E73: 0.7602357547 | F73: =deng_kgm3(A73,Input!$C$16,$B$7*28.97,C73)/1000 -> 0.0006509251648 | G73: =visg_cp(F73*1000,Input!$C$16,$B$7*28.97) -> 0.0133607364 | H73: 0.01334489704 | I73: 1.001186922 | J73: 74.9350105 | K73: 56.9007375 | L73: 0 | M73: 0 | N73: 1.001184827 | O73: -0.001183422385
A74: =MAX(1,A73-Input!$C$25) -> 1 | B74: 0.021864892 | C74: 0.9988144848 | D74: 1.315381438 | E74: 0.7602357547 | F74: =deng_kgm3(A74,Input!$C$16,$B$7*28.97,C74)/1000 -> 0.0006509251648 | G74: =visg_cp(F74*1000,Input!$C$16,$B$7*28.97) -> 0.0133607364 | H74: 0.01334489704 | I74: 1.001186922 | J74: 74.9350105 | K74: 56.9007375 | L74: 0 | M74: 0 | N74: 1.001184827 | O74: -0.001183422385
A75: =MAX(1,A74-Input!$C$25) -> 1 | B75: 0.021864892 | C75: 0.9988144848 | D75: 1.315381438 | E75: 0.7602357547 | F75: =deng_kgm3(A75,Input!$C$16,$B$7*28.97,C75)/1000 -> 0.0006509251648 | G75: =visg_cp(F75*1000,Input!$C$16,$B$7*28.97) -> 0.0133607364 | H75: 0.01334489704 | I75: 1.001186922 | J75: 74.9350105 | K75: 56.9007375 | L75: 0 | M75: 0 | N75: 1.001184827 | O75: -0.001183422385
A76: =MAX(1,A75-Input!$C$25) -> 1 | B76: 0.021864892 | C76: 0.9988144848 | D76: 1.315381438 | E76: 0.7602357547 | F76: =deng_kgm3(A76,Input!$C$16,$B$7*28.97,C76)/1000 -> 0.0006509251648 | G76: =visg_cp(F76*1000,Input!$C$16,$B$7*28.97) -> 0.0133607364 | H76: 0.01334489704 | I76: 1.001186922 | J76: 74.9350105 | K76: 56.9007375 | L76: 0 | M76: 0 | N76: 1.001184827 | O76: -0.001183422385
A77: =MAX(1,A76-Input!$C$25) -> 1 | B77: 0.021864892 | C77: 0.9988144848 | D77: 1.315381438 | E77: 0.7602357547 | F77: =deng_kgm3(A77,Input!$C$16,$B$7*28.97,C77)/1000 -> 0.0006509251648 | G77: =visg_cp(F77*1000,Input!$C$16,$B$7*28.97) -> 0.0133607364 | H77: 0.01334489704 | I77: 1.001186922 | J77: 74.9350105 | K77: 56.9007375 | L77: 0 | M77: 0 | N77: 1.001184827 | O77: -0.001183422385
A78: =MAX(1,A77-Input!$C$25) -> 1 | B78: 0.021864892 | C78: 0.9988144848 | D78: 1.315381438 | E78: 0.7602357547 | F78: =deng_kgm3(A78,Input!$C$16,$B$7*28.97,C78)/1000 -> 0.0006509251648 | G78: =visg_cp(F78*1000,Input!$C$16,$B$7*28.97) -> 0.0133607364 | H78: 0.01334489704 | I78: 1.001186922 | J78: 74.9350105 | K78: 56.9007375 | L78: 0 | M78: 0 | N78: 1.001184827 | O78: -0.001183422385
A79: =MAX(1,A78-Input!$C$25) -> 1 | B79: 0.021864892 | C79: 0.9988144848 | D79: 1.315381438 | E79: 0.7602357547 | F79: =deng_kgm3(A79,Input!$C$16,$B$7*28.97,C79)/1000 -> 0.0006509251648 | G79: =visg_cp(F79*1000,Input!$C$16,$B$7*28.97) -> 0.0133607364 | H79: 0.01334489704 | I79: 1.001186922 | J79: 74.9350105 | K79: 56.9007375 | L79: 0 | M79: 0 | N79: 1.001184827 | O79: -0.001183422385
A80: =MAX(1,A79-Input!$C$25) -> 1 | B80: 0.021864892 | C80: 0.9988144848 | D80: 1.315381438 | E80: 0.7602357547 | F80: =deng_kgm3(A80,Input!$C$16,$B$7*28.97,C80)/1000 -> 0.0006509251648 | G80: =visg_cp(F80*1000,Input!$C$16,$B$7*28.97) -> 0.0133607364 | H80: 0.01334489704 | I80: 1.001186922 | J80: 74.9350105 | K80: 56.9007375 | L80: 0 | M80: 0 | N80: 1.001184827 | O80: -0.001183422385
A81: =MAX(1,A80-Input!$C$25) -> 1 | B81: 0.021864892 | C81: 0.9988144848 | D81: 1.315381438 | E81: 0.7602357547 | F81: =deng_kgm3(A81,Input!$C$16,$B$7*28.97,C81)/1000 -> 0.0006509251648 | G81: =visg_cp(F81*1000,Input!$C$16,$B$7*28.97) -> 0.0133607364 | H81: 0.01334489704 | I81: 1.001186922 | J81: 74.9350105 | K81: 56.9007375 | L81: 0 | M81: 0 | N81: 1.001184827 | O81: -0.001183422385
A82: =MAX(1,A81-Input!$C$25) -> 1 | B82: 0.021864892 | C82: 0.9988144848 | D82: 1.315381438 | E82: 0.7602357547 | F82: =deng_kgm3(A82,Input!$C$16,$B$7*28.97,C82)/1000 -> 0.0006509251648 | G82: =visg_cp(F82*1000,Input!$C$16,$B$7*28.97) -> 0.0133607364 | H82: 0.01334489704 | I82: 1.001186922 | J82: 74.9350105 | K82: 56.9007375 | L82: 0 | M82: 0 | N82: 1.001184827 | O82: -0.001183422385
A83: =MAX(1,A82-Input!$C$25) -> 1 | B83: 0.021864892 | C83: 0.9988144848 | D83: 1.315381438 | E83: 0.7602357547 | F83: =deng_kgm3(A83,Input!$C$16,$B$7*28.97,C83)/1000 -> 0.0006509251648 | G83: =visg_cp(F83*1000,Input!$C$16,$B$7*28.97) -> 0.0133607364 | H83: 0.01334489704 | I83: 1.001186922 | J83: 74.9350105 | K83: 56.9007375 | L83: 0 | M83: 0 | N83: 1.001184827 | O83: -0.001183422385
A84: =MAX(1,A83-Input!$C$25) -> 1 | B84: 0.021864892 | C84: 0.9988144848 | D84: 1.315381438 | E84: 0.7602357547 | F84: =deng_kgm3(A84,Input!$C$16,$B$7*28.97,C84)/1000 -> 0.0006509251648 | G84: =visg_cp(F84*1000,Input!$C$16,$B$7*28.97) -> 0.0133607364 | H84: 0.01334489704 | I84: 1.001186922 | J84: 74.9350105 | K84: 56.9007375 | L84: 0 | M84: 0 | N84: 1.001184827 | O84: -0.001183422385
A85: =MAX(1,A84-Input!$C$25) -> 1 | B85: 0.021864892 | C85: 0.9988144848 | D85: 1.315381438 | E85: 0.7602357547 | F85: =deng_kgm3(A85,Input!$C$16,$B$7*28.97,C85)/1000 -> 0.0006509251648 | G85: =visg_cp(F85*1000,Input!$C$16,$B$7*28.97) -> 0.0133607364 | H85: 0.01334489704 | I85: 1.001186922 | J85: 74.9350105 | K85: 56.9007375 | L85: 0 | M85: 0 | N85: 1.001184827 | O85: -0.001183422385
A86: =MAX(1,A85-Input!$C$25) -> 1 | B86: 0.021864892 | C86: 0.9988144848 | D86: 1.315381438 | E86: 0.7602357547 | F86: =deng_kgm3(A86,Input!$C$16,$B$7*28.97,C86)/1000 -> 0.0006509251648 | G86: =visg_cp(F86*1000,Input!$C$16,$B$7*28.97) -> 0.0133607364 | H86: 0.01334489704 | I86: 1.001186922 | J86: 74.9350105 | K86: 56.9007375 | L86: 0 | M86: 0 | N86: 1.001184827 | O86: -0.001183422385
A87: =MAX(1,A86-Input!$C$25) -> 1 | B87: 0.021864892 | C87: 0.9988144848 | D87: 1.315381438 | E87: 0.7602357547 | F87: =deng_kgm3(A87,Input!$C$16,$B$7*28.97,C87)/1000 -> 0.0006509251648 | G87: =visg_cp(F87*1000,Input!$C$16,$B$7*28.97) -> 0.0133607364 | H87: 0.01334489704 | I87: 1.001186922 | J87: 74.9350105 | K87: 56.9007375 | L87: 0 | M87: 0 | N87: 1.001184827 | O87: -0.001183422385
A88: =MAX(1,A87-Input!$C$25) -> 1 | B88: 0.021864892 | C88: 0.9988144848 | D88: 1.315381438 | E88: 0.7602357547 | F88: =deng_kgm3(A88,Input!$C$16,$B$7*28.97,C88)/1000 -> 0.0006509251648 | G88: =visg_cp(F88*1000,Input!$C$16,$B$7*28.97) -> 0.0133607364 | H88: 0.01334489704 | I88: 1.001186922 | J88: 74.9350105 | K88: 56.9007375 | L88: 0 | M88: 0 | N88: 1.001184827 | O88: -0.001183422385
A89: =MAX(1,A88-Input!$C$25) -> 1 | B89: 0.021864892 | C89: 0.9988144848 | D89: 1.315381438 | E89: 0.7602357547 | F89: =deng_kgm3(A89,Input!$C$16,$B$7*28.97,C89)/1000 -> 0.0006509251648 | G89: =visg_cp(F89*1000,Input!$C$16,$B$7*28.97) -> 0.0133607364 | H89: 0.01334489704 | I89: 1.001186922 | J89: 74.9350105 | K89: 56.9007375 | L89: 0 | M89: 0 | N89: 1.001184827 | O89: -0.001183422385
A90: =MAX(1,A89-Input!$C$25) -> 1 | B90: 0.021864892 | C90: 0.9988144848 | D90: 1.315381438 | E90: 0.7602357547 | F90: =deng_kgm3(A90,Input!$C$16,$B$7*28.97,C90)/1000 -> 0.0006509251648 | G90: =visg_cp(F90*1000,Input!$C$16,$B$7*28.97) -> 0.0133607364 | H90: 0.01334489704 | I90: 1.001186922 | J90: 74.9350105 | K90: 56.9007375 | L90: 0 | M90: 0 | N90: 1.001184827 | O90: -0.001183422385
A91: =MAX(1,A90-Input!$C$25) -> 1 | B91: 0.021864892 | C91: 0.9988144848 | D91: 1.315381438 | E91: 0.7602357547 | F91: =deng_kgm3(A91,Input!$C$16,$B$7*28.97,C91)/1000 -> 0.0006509251648 | G91: =visg_cp(F91*1000,Input!$C$16,$B$7*28.97) -> 0.0133607364 | H91: 0.01334489704 | I91: 1.001186922 | J91: 74.9350105 | K91: 56.9007375 | L91: 0 | M91: 0 | N91: 1.001184827 | O91: -0.001183422385
A92: =MAX(1,A91-Input!$C$25) -> 1 | B92: 0.021864892 | C92: 0.9988144848 | D92: 1.315381438 | E92: 0.7602357547 | F92: =deng_kgm3(A92,Input!$C$16,$B$7*28.97,C92)/1000 -> 0.0006509251648 | G92: =visg_cp(F92*1000,Input!$C$16,$B$7*28.97) -> 0.0133607364 | H92: 0.01334489704 | I92: 1.001186922 | J92: 74.9350105 | K92: 56.9007375 | L92: 0 | M92: 0 | N92: 1.001184827 | O92: -0.001183422385
A93: =MAX(1,A92-Input!$C$25) -> 1 | B93: 0.021864892 | C93: 0.9988144848 | D93: 1.315381438 | E93: 0.7602357547 | F93: =deng_kgm3(A93,Input!$C$16,$B$7*28.97,C93)/1000 -> 0.0006509251648 | G93: =visg_cp(F93*1000,Input!$C$16,$B$7*28.97) -> 0.0133607364 | H93: 0.01334489704 | I93: 1.001186922 | J93: 74.9350105 | K93: 56.9007375 | L93: 0 | M93: 0 | N93: 1.001184827 | O93: -0.001183422385
A94: =MAX(1,A93-Input!$C$25) -> 1 | B94: 0.021864892 | C94: 0.9988144848 | D94: 1.315381438 | E94: 0.7602357547 | F94: =deng_kgm3(A94,Input!$C$16,$B$7*28.97,C94)/1000 -> 0.0006509251648 | G94: =visg_cp(F94*1000,Input!$C$16,$B$7*28.97) -> 0.0133607364 | H94: 0.01334489704 | I94: 1.001186922 | J94: 74.9350105 | K94: 56.9007375 | L94: 0 | M94: 0 | N94: 1.001184827 | O94: -0.001183422385
A95: =MAX(1,A94-Input!$C$25) -> 1 | B95: 0.021864892 | C95: 0.9988144848 | D95: 1.315381438 | E95: 0.7602357547 | F95: =deng_kgm3(A95,Input!$C$16,$B$7*28.97,C95)/1000 -> 0.0006509251648 | G95: =visg_cp(F95*1000,Input!$C$16,$B$7*28.97) -> 0.0133607364 | H95: 0.01334489704 | I95: 1.001186922 | J95: 74.9350105 | K95: 56.9007375 | L95: 0 | M95: 0 | N95: 1.001184827 | O95: -0.001183422385
A96: =MAX(1,A95-Input!$C$25) -> 1 | B96: 0.021864892 | C96: 0.9988144848 | D96: 1.315381438 | E96: 0.7602357547 | F96: =deng_kgm3(A96,Input!$C$16,$B$7*28.97,C96)/1000 -> 0.0006509251648 | G96: =visg_cp(F96*1000,Input!$C$16,$B$7*28.97) -> 0.0133607364 | H96: 0.01334489704 | I96: 1.001186922 | J96: 74.9350105 | K96: 56.9007375 | L96: 0 | M96: 0 | N96: 1.001184827 | O96: -0.001183422385
A97: =MAX(1,A96-Input!$C$25) -> 1 | B97: 0.021864892 | C97: 0.9988144848 | D97: 1.315381438 | E97: 0.7602357547 | F97: =deng_kgm3(A97,Input!$C$16,$B$7*28.97,C97)/1000 -> 0.0006509251648 | G97: =visg_cp(F97*1000,Input!$C$16,$B$7*28.97) -> 0.0133607364 | H97: 0.01334489704 | I97: 1.001186922 | J97: 74.9350105 | K97: 56.9007375 | L97: 0 | M97: 0 | N97: 1.001184827 | O97: -0.001183422385
A98: =MAX(1,A97-Input!$C$25) -> 1 | B98: 0.021864892 | C98: 0.9988144848 | D98: 1.315381438 | E98: 0.7602357547 | F98: =deng_kgm3(A98,Input!$C$16,$B$7*28.97,C98)/1000 -> 0.0006509251648 | G98: =visg_cp(F98*1000,Input!$C$16,$B$7*28.97) -> 0.0133607364 | H98: 0.01334489704 | I98: 1.001186922 | J98: 74.9350105 | K98: 56.9007375 | L98: 0 | M98: 0 | N98: 1.001184827 | O98: -0.001183422385
A99: =MAX(1,A98-Input!$C$25) -> 1 | B99: 0.021864892 | C99: 0.9988144848 | D99: 1.315381438 | E99: 0.7602357547 | F99: =deng_kgm3(A99,Input!$C$16,$B$7*28.97,C99)/1000 -> 0.0006509251648 | G99: =visg_cp(F99*1000,Input!$C$16,$B$7*28.97) -> 0.0133607364 | H99: 0.01334489704 | I99: 1.001186922 | J99: 74.9350105 | K99: 56.9007375 | L99: 0 | M99: 0 | N99: 1.001184827 | O99: -0.001183422385
A100: =MAX(1,A99-Input!$C$25) -> 1 | B100: 0.021864892 | C100: 0.9988144848 | D100: 1.315381438 | E100: 0.7602357547 | F100: =deng_kgm3(A100,Input!$C$16,$B$7*28.97,C100)/1000 -> 0.0006509251648 | G100: =visg_cp(F100*1000,Input!$C$16,$B$7*28.97) -> 0.0133607364 | H100: 0.01334489704 | I100: 1.001186922 | J100: 74.9350105 | K100: 56.9007375 | L100: 0 | M100: 0 | N100: 1.001184827 | O100: -0.001183422385

Sheet Calcs-Field
A1: Gas PVT Properties
A3: Curtis H. Whitson
A4: Sheet 2 - Gas PVT f(p)
A5: FIELD UNITS (or any user-specified units)
A7: Gravity | B7: =Input!$C$18 -> 0.7 | C7: (air=1) | F7: Lee et al. | I7: Units conversion:
A8: Tpc | B8: =1.8*Input!$C$19 -> 377.59 | C8: R | F8: A1 | G8: =0.0001*(9.379+0.46555*$B$7)*($B$10*1.8)^1.5/(209.2+558*$B$7+$B$10*1.8) -> 0.02265532396 | I8: 14.50377 | J8: psi | K8: / bar
A9: Ppc | B9: =14.50377*Input!$C$20 -> 663.336 | C9: psia | F9: A2 | G9: =3.448+(986.4/(1.8*$B$10))+0.29231*$B$7 -> 4.464144241 | I9: 62.428 | J9: lb/ft3 | K9: / (g/cc)
A10: TR | B10: =1.8*(Input!C16+273.15) -> 675.27 | C10: R | F10: A3 | G10: =2.447-0.2224*G9 -> 1.454174321 | I10: 1 | J10: cp | K10: / (mPa-s)
A11: Tpr | B11: =$B$10/$B$8 -> 1.788368336 | I11: 1 | J11: ft3/scf | K11: / (m3/Sm3)
J12: RB/Mscf | K12: / (m3/Sm3)
G15: Lee et al.
E16: Inverse | F16: Density | G16: Viscosity | L16: Delta pp
A17: p | B17: ppr | C17: Z | D17: Bg | E17: bg=1/Bg | F17: dg | G17: ug | H17: ugZ | I17: p/Z | J17: p/uZ | K17: 1/ugBg | L17: 2(p/uZ)dp | M17: pp | N17: cg | O17: dZ/dp
A18: =CONCATENATE(J8,"a") -> psia | D18: =J11 -> ft3/scf | E18: =CONCATENATE("1/(",D18,")") -> 1/(ft3/scf) | F18: =J9 -> lb/ft3 | G18: =J10 -> cp | H18: =J10 -> cp | I18: =CONCATENATE(J8,"a") -> psia | J18: =CONCATENATE(J8,"a/",J10) -> psia/cp | K18: =CONCATENATE("1/[(",J10,")(",J11,")]") -> 1/[(cp)(ft3/scf)] | L18: =CONCATENATE(J8,"2/",J10) -> psi2/cp | M18: =L18 -> psi2/cp | N18: =CONCATENATE("1/",J8,"a") -> 1/psia | O18: =CONCATENATE("1/",J8) -> 1/psi
A20: ='Calcs-SI'!A20*$I$8 -> 14503.77 | B20: ='Calcs-SI'!B20 -> 21.864892 | C20: ='Calcs-SI'!C20 -> 1.815432423 | D20: ='Calcs-SI'!D20*'Calcs-Field'!$I$11 -> 0.002390820465 | E20: ='Calcs-SI'!E20/'Calcs-Field'!$I$11 -> 418.2664548 | F20: ='Calcs-SI'!F20*'Calcs-Field'!$I$9 -> 22.35708756 | G20: ='Calcs-SI'!G20 -> 0.05061435244 | H20: ='Calcs-SI'!H20 -> 0.09188693651 | I20: ='Calcs-SI'!I20*'Calcs-Field'!$I$8 -> 7989.154438 | J20: ='Calcs-SI'!J20*'Calcs-Field'!$I$8 -> 157843.656 | K20: ='Calcs-SI'!K20 -> 8263.791486 | L20: ='Calcs-SI'!L20*'Calcs-Field'!$I$8^2 -> 114807264.3 | M20: ='Calcs-SI'!M20*'Calcs-Field'!$I$8^2 -> 4538269841 | N20: ='Calcs-SI'!N20/'Calcs-Field'!$I$8 -> 2.184358448e-05 | O20: ='Calcs-SI'!O20/'Calcs-Field'!$I$8 -> 8.551414046e-05
A21: ='Calcs-SI'!A21*$I$8 -> 14141.17575 | B21: ='Calcs-SI'!B21 -> 21.3182697 | C21: ='Calcs-SI'!C21 -> 1.784389134 | D21: ='Calcs-SI'!D21*'Calcs-Field'!$I$11 -> 0.002410193059 | E21: ='Calcs-SI'!E21/'Calcs-Field'!$I$11 -> 414.9045224 | F21: ='Calcs-SI'!F21*'Calcs-Field'!$I$9 -> 22.17738628 | G21: ='Calcs-SI'!G21 -> 0.04991027815 | H21: ='Calcs-SI'!H21 -> 0.08905935801 | I21: ='Calcs-SI'!I21*'Calcs-Field'!$I$8 -> 7924.939398 | J21: ='Calcs-SI'!J21*'Calcs-Field'!$I$8 -> 158783.7153 | K21: ='Calcs-SI'!K21 -> 8313.007617 | L21: ='Calcs-SI'!L21*'Calcs-Field'!$I$8^2 -> 115495357.8 | M21: ='Calcs-SI'!M21*'Calcs-Field'!$I$8^2 -> 4423462577 | N21: ='Calcs-SI'!N21/'Calcs-Field'!$I$8 -> 2.267986959e-05 | O21: ='Calcs-SI'!O21/'Calcs-Field'!$I$8 -> 8.571421736e-05
A22: ='Calcs-SI'!A22*$I$8 -> 13778.5815 | B22: ='Calcs-SI'!B22 -> 20.7716474 | C22: ='Calcs-SI'!C22 -> 1.753273839 | D22: ='Calcs-SI'!D22*'Calcs-Field'!$I$11 -> 0.002430485444 | E22: ='Calcs-SI'!E22/'Calcs-Field'!$I$11 -> 411.4404398 | F22: ='Calcs-SI'!F22*'Calcs-Field'!$I$9 -> 21.99222489 | G22: ='Calcs-SI'!G22 -> 0.04919686189 | H22: ='Calcs-SI'!H22 -> 0.08625557092 | I22: ='Calcs-SI'!I22*'Calcs-Field'!$I$8 -> 7858.773223 | J22: ='Calcs-SI'!J22*'Calcs-Field'!$I$8 -> 159741.3518 | K22: ='Calcs-SI'!K22 -> 8363.143989 | L22: ='Calcs-SI'!L22*'Calcs-Field'!$I$8^2 -> 116196270.8 | M22: ='Calcs-SI'!M22*'Calcs-Field'!$I$8^2 -> 4307967219 | N22: ='Calcs-SI'!N22/'Calcs-Field'!$I$8 -> 2.357599967e-05 | O22: ='Calcs-SI'!O22/'Calcs-Field'!$I$8 -> 8.591114007e-05
A23: ='Calcs-SI'!A23*$I$8 -> 13415.98725 | B23: ='Calcs-SI'!B23 -> 20.2250251 | C23: ='Calcs-SI'!C23 -> 1.722087878 | D23: ='Calcs-SI'!D23*'Calcs-Field'!$I$11 -> 0.002451774107 | E23: ='Calcs-SI'!E23/'Calcs-Field'!$I$11 -> 407.8679179 | F23: ='Calcs-SI'!F23*'Calcs-Field'!$I$9 -> 21.80126722 | G23: ='Calcs-SI'!G23 -> 0.04847369692 | H23: ='Calcs-SI'!H23 -> 0.08347596588 | I23: ='Calcs-SI'!I23*'Calcs-Field'!$I$8 -> 7790.53579 | J23: ='Calcs-SI'!J23*'Calcs-Field'!$I$8 -> 160716.7657 | K23: ='Calcs-SI'!K23 -> 8414.211083 | L23: ='Calcs-SI'!L23*'Calcs-Field'!$I$8^2 -> 116910122.8 | M23: ='Calcs-SI'!M23*'Calcs-Field'!$I$8^2 -> 4191770948 | N23: ='Calcs-SI'!N23/'Calcs-Field'!$I$8 -> 2.453828475e-05 | O23: ='Calcs-SI'!O23/'Calcs-Field'!$I$8 -> 8.610379347e-05
A24: ='Calcs-SI'!A24*$I$8 -> 13053.393 | B24: ='Calcs-SI'!B24 -> 19.6784028 | C24: ='Calcs-SI'!C24 -> 1.690833034 | D24: ='Calcs-SI'!D24*'Calcs-Field'!$I$11 -> 0.002474144678 | E24: ='Calcs-SI'!E24/'Calcs-Field'!$I$11 -> 404.1800824 | F24: ='Calcs-SI'!F24*'Calcs-Field'!$I$9 -> 21.60414585 | G24: ='Calcs-SI'!G24 -> 0.04774034781 | H24: ='Calcs-SI'!H24 -> 0.08072095715 | I24: ='Calcs-SI'!I24*'Calcs-Field'!$I$8 -> 7720.095796 | J24: ='Calcs-SI'!J24*'Calcs-Field'!$I$8 -> 161710.0869 | K24: ='Calcs-SI'!K24 -> 8466.215706 | L24: ='Calcs-SI'!L24*'Calcs-Field'!$I$8^2 -> 117636975.1 | M24: ='Calcs-SI'!M24*'Calcs-Field'!$I$8^2 -> 4074860826 | N24: ='Calcs-SI'!N24/'Calcs-Field'!$I$8 -> 2.557391878e-05 | O24: ='Calcs-SI'!O24/'Calcs-Field'!$I$8 -> 8.629084473e-05
A25: ='Calcs-SI'!A25*$I$8 -> 12690.79875 | B25: ='Calcs-SI'!B25 -> 19.1317805 | C25: ='Calcs-SI'!C25 -> 1.659511613 | D25: ='Calcs-SI'!D25*'Calcs-Field'!$I$11 -> 0.002497693364 | E25: ='Calcs-SI'!E25/'Calcs-Field'!$I$11 -> 400.3694025 | F25: ='Calcs-SI'!F25*'Calcs-Field'!$I$9 -> 21.40045821 | G25: ='Calcs-SI'!G25 -> 0.04699634803 | H25: ='Calcs-SI'!H25 -> 0.07799098535 | I25: ='Calcs-SI'!I25*'Calcs-Field'!$I$8 -> 7647.309393 | J25: ='Calcs-SI'!J25*'Calcs-Field'!$I$8 -> 162721.3542 | K25: ='Calcs-SI'!K25 -> 8519.159877 | L25: ='Calcs-SI'!L25*'Calcs-Field'!$I$8^2 -> 118376813.5 | M25: ='Calcs-SI'!M25*'Calcs-Field'!$I$8^2 -> 3957223850 | N25: ='Calcs-SI'!N25/'Calcs-Field'!$I$8 -> 2.669113437e-05 | O25: ='Calcs-SI'!O25/'Calcs-Field'!$I$8 -> 8.647069856e-05
A26: ='Calcs-SI'!A26*$I$8 -> 12328.2045 | B26: ='Calcs-SI'!B26 -> 18.5851582 | C26: ='Calcs-SI'!C26 -> 1.628126578 | D26: ='Calcs-SI'!D26*'Calcs-Field'!$I$11 -> 0.002522528706 | E26: ='Calcs-SI'!E26/'Calcs-Field'!$I$11 -> 396.4275997 | F26: ='Calcs-SI'!F26*'Calcs-Field'!$I$9 -> 21.18976182 | G26: ='Calcs-SI'!G26 -> 0.04624119573 | H26: ='Calcs-SI'!H26 -> 0.07528651975 | I26: ='Calcs-SI'!I26*'Calcs-Field'!$I$8 -> 7572.01846 | J26: ='Calcs-SI'!J26*'Calcs-Field'!$I$8 -> 163750.49 | K26: ='Calcs-SI'!K26 -> 8573.039546 | L26: ='Calcs-SI'!L26*'Calcs-Field'!$I$8^2 -> 119129526.7 | M26: ='Calcs-SI'!M26*'Calcs-Field'!$I$8^2 -> 3838847037 | N26: ='Calcs-SI'!N26/'Calcs-Field'!$I$8 -> 2.789939272e-05 | O26: ='Calcs-SI'!O26/'Calcs-Field'!$I$8 -> 8.664143974e-05
A27: ='Calcs-SI'!A27*$I$8 -> 11965.61025 | B27: ='Calcs-SI'!B27 -> 18.0385359 | C27: ='Calcs-SI'!C27 -> 1.596681621 | D27: ='Calcs-SI'!D27*'Calcs-Field'!$I$11 -> 0.002548773569 | E27: ='Calcs-SI'!E27/'Calcs-Field'!$I$11 -> 392.3455627 | F27: ='Calcs-SI'!F27*'Calcs-Field'!$I$9 -> 20.97156968 | G27: ='Calcs-SI'!G27 -> 0.04547435289 | H27: ='Calcs-SI'!H27 -> 0.07260806347 | I27: ='Calcs-SI'!I27*'Calcs-Field'!$I$8 -> 7494.048967 | J27: ='Calcs-SI'!J27*'Calcs-Field'!$I$8 -> 164797.2646 | K27: ='Calcs-SI'!K27 -> 8627.842681 | L27: ='Calcs-SI'!L27*'Calcs-Field'!$I$8^2 -> 119894878.6 | M27: ='Calcs-SI'!M27*'Calcs-Field'!$I$8^2 -> 3719717510 | N27: ='Calcs-SI'!N27/'Calcs-Field'!$I$8 -> 2.920960901e-05 | O27: ='Calcs-SI'!O27/'Calcs-Field'!$I$8 -> 8.680076763e-05
A28: ='Calcs-SI'!A28*$I$8 -> 11603.016 | B28: ='Calcs-SI'!B28 -> 17.4919136 | C28: ='Calcs-SI'!C28 -> 1.565181372 | D28: ='Calcs-SI'!D28*'Calcs-Field'!$I$11 -> 0.002576567715 | E28: ='Calcs-SI'!E28/'Calcs-Field'!$I$11 -> 388.1132229 | F28: ='Calcs-SI'!F28*'Calcs-Field'!$I$9 -> 20.74534357 | G28: ='Calcs-SI'!G28 -> 0.04469523947 | H28: ='Calcs-SI'!H28 -> 0.06995615624 | I28: ='Calcs-SI'!I28*'Calcs-Field'!$I$8 -> 7413.208594 | J28: ='Calcs-SI'!J28*'Calcs-Field'!$I$8 -> 165861.2569 | K28: ='Calcs-SI'!K28 -> 8683.547231 | L28: ='Calcs-SI'!L28*'Calcs-Field'!$I$8^2 -> 120672474.6 | M28: ='Calcs-SI'!M28*'Calcs-Field'!$I$8^2 -> 3599822632 | N28: ='Calcs-SI'!N28/'Calcs-Field'!$I$8 -> 3.063443632e-05 | O28: ='Calcs-SI'!O28/'Calcs-Field'!$I$8 -> 8.694590704e-05
A29: ='Calcs-SI'!A29*$I$8 -> 11240.42175 | B29: ='Calcs-SI'!B29 -> 16.9452913 | C29: ='Calcs-SI'!C29 -> 1.533631567 | D29: ='Calcs-SI'!D29*'Calcs-Field'!$I$11 -> 0.00260607082 | E29: ='Calcs-SI'!E29/'Calcs-Field'!$I$11 -> 383.7194263 | F29: ='Calcs-SI'!F29*'Calcs-Field'!$I$9 -> 20.5104873 | G29: ='Calcs-SI'!G29 -> 0.04390323044 | H29: ='Calcs-SI'!H29 -> 0.06733138008 | I29: ='Calcs-SI'!I29*'Calcs-Field'!$I$8 -> 7329.284292 | J29: ='Calcs-SI'!J29*'Calcs-Field'!$I$8 -> 166941.7995 | K29: ='Calcs-SI'!K29 -> 8740.118264 | L29: ='Calcs-SI'!L29*'Calcs-Field'!$I$8^2 -> 121461716.9 | M29: ='Calcs-SI'!M29*'Calcs-Field'!$I$8^2 -> 3479150157 | N29: ='Calcs-SI'!N29/'Calcs-Field'!$I$8 -> 3.218860977e-05 | O29: ='Calcs-SI'!O29/'Calcs-Field'!$I$8 -> 8.707350202e-05
A30: ='Calcs-SI'!A30*$I$8 -> 10877.8275 | B30: ='Calcs-SI'!B30 -> 16.398669 | C30: ='Calcs-SI'!C30 -> 1.502039279 | D30: ='Calcs-SI'!D30*'Calcs-Field'!$I$11 -> 0.002637466205 | E30: ='Calcs-SI'!E30/'Calcs-Field'!$I$11 -> 379.1517776 | F30: ='Calcs-SI'!F30*'Calcs-Field'!$I$9 -> 20.26633834 | G30: ='Calcs-SI'!G30 -> 0.04309765136 | H30: ='Calcs-SI'!H30 -> 0.06473436518 | I30: ='Calcs-SI'!I30*'Calcs-Field'!$I$8 -> 7242.039307 | J30: ='Calcs-SI'!J30*'Calcs-Field'!$I$8 -> 168037.9111 | K30: ='Calcs-SI'!K30 -> 8797.504403 | L30: ='Calcs-SI'!L30*'Calcs-Field'!$I$8^2 -> 122261748.3 | M30: ='Calcs-SI'!M30*'Calcs-Field'!$I$8^2 -> 3357688440 | N30: ='Calcs-SI'!N30/'Calcs-Field'!$I$8 -> 3.388937511e-05 | O30: ='Calcs-SI'!O30/'Calcs-Field'!$I$8 -> 8.717948036e-05
A31: ='Calcs-SI'!A31*$I$8 -> 10515.23325 | B31: ='Calcs-SI'!B31 -> 15.8520467 | C31: ='Calcs-SI'!C31 -> 1.470413218 | D31: ='Calcs-SI'!D31*'Calcs-Field'!$I$11 -> 0.002670965439 | E31: ='Calcs-SI'!E31/'Calcs-Field'!$I$11 -> 374.3964581 | F31: ='Calcs-SI'!F31*'Calcs-Field'!$I$9 -> 20.01215804 | G31: ='Calcs-SI'!G31 -> 0.04227777361 | H31: ='Calcs-SI'!H31 -> 0.06216579713 | I31: ='Calcs-SI'!I31*'Calcs-Field'!$I$8 -> 7151.20969 | J31: ='Calcs-SI'!J31*'Calcs-Field'!$I$8 -> 169148.2091 | K31: ='Calcs-SI'!K31 -> 8855.633258 | L31: ='Calcs-SI'!L31*'Calcs-Field'!$I$8^2 -> 123071379.8 | M31: ='Calcs-SI'!M31*'Calcs-Field'!$I$8^2 -> 3235426692 | N31: ='Calcs-SI'!N31/'Calcs-Field'!$I$8 -> 3.575702297e-05 | O31: ='Calcs-SI'!O31/'Calcs-Field'!$I$8 -> 8.72588821e-05
A32: ='Calcs-SI'!A32*$I$8 -> 10152.639 | B32: ='Calcs-SI'!B32 -> 15.3054244 | C32: ='Calcs-SI'!C32 -> 1.438764077 | D32: ='Calcs-SI'!D32*'Calcs-Field'!$I$11 -> 0.002706814056 | E32: ='Calcs-SI'!E32/'Calcs-Field'!$I$11 -> 369.4380106 | F32: ='Calcs-SI'!F32*'Calcs-Field'!$I$9 -> 19.74712018 | G32: ='Calcs-SI'!G32 -> 0.04144280956 | H32: ='Calcs-SI'!H32 -> 0.05962642566 | I32: ='Calcs-SI'!I32*'Calcs-Field'!$I$8 -> 7056.5002 | J32: ='Calcs-SI'!J32*'Calcs-Field'!$I$8 -> 170270.7967 | K32: ='Calcs-SI'!K32 -> 8914.405528 | L32: ='Calcs-SI'!L32*'Calcs-Field'!$I$8^2 -> 123888997 | M32: ='Calcs-SI'!M32*'Calcs-Field'!$I$8^2 -> 3112355312 | N32: ='Calcs-SI'!N32/'Calcs-Field'!$I$8 -> 3.781555925e-05 | O32: ='Calcs-SI'!O32/'Calcs-Field'!$I$8 -> 8.730564174e-05
A33: ='Calcs-SI'!A33*$I$8 -> 9790.04475 | B33: ='Calcs-SI'!B33 -> 14.7588021 | C33: ='Calcs-SI'!C33 -> 1.407105009 | D33: ='Calcs-SI'!D33*'Calcs-Field'!$I$11 -> 0.002745298756 | E33: ='Calcs-SI'!E33/'Calcs-Field'!$I$11 -> 364.2590803 | F33: ='Calcs-SI'!F33*'Calcs-Field'!$I$9 -> 19.47029712 | G33: ='Calcs-SI'!G33 -> 0.04059190642 | H33: ='Calcs-SI'!H33 -> 0.05711707485 | I33: ='Calcs-SI'!I33*'Calcs-Field'!$I$8 -> 6957.579347 | J33: ='Calcs-SI'!J33*'Calcs-Field'!$I$8 -> 171403.1185 | K33: ='Calcs-SI'!K33 -> 8973.687427 | L33: ='Calcs-SI'!L33*'Calcs-Field'!$I$8^2 -> 124712438.5 | M33: ='Calcs-SI'!M33*'Calcs-Field'!$I$8^2 -> 2988466315 | N33: ='Calcs-SI'!N33/'Calcs-Field'!$I$8 -> 4.00935547e-05 | O33: ='Calcs-SI'!O33/'Calcs-Field'!$I$8 -> 8.73123072e-05
A34: ='Calcs-SI'!A34*$I$8 -> 9427.4505 | B34: ='Calcs-SI'!B34 -> 14.2121798 | C34: ='Calcs-SI'!C34 -> 1.375452149 | D34: ='Calcs-SI'!D34*'Calcs-Field'!$I$11 -> 0.002786756396 | E34: ='Calcs-SI'!E34/'Calcs-Field'!$I$11 -> 358.8401202 | F34: ='Calcs-SI'!F34*'Calcs-Field'!$I$9 -> 19.18064405 | G34: ='Calcs-SI'!G34 -> 0.03972414225 | H34: ='Calcs-SI'!H34 -> 0.0546386568 | I34: ='Calcs-SI'!I34*'Calcs-Field'!$I$8 -> 6854.073775 | J34: ='Calcs-SI'!J34*'Calcs-Field'!$I$8 -> 172541.769 | K34: ='Calcs-SI'!K34 -> 9033.300656 | L34: ='Calcs-SI'!L34*'Calcs-Field'!$I$8^2 -> 125538836.9 | M34: ='Calcs-SI'!M34*'Calcs-Field'!$I$8^2 -> 2863753876 | N34: ='Calcs-SI'!N34/'Calcs-Field'!$I$8 -> 4.262522014e-05 | O34: ='Calcs-SI'!O34/'Calcs-Field'!$I$8 -> 8.726968322e-05
A35: ='Calcs-SI'!A35*$I$8 -> 9064.85625 | B35: ='Calcs-SI'!B35 -> 13.6655575 | C35: ='Calcs-SI'!C35 -> 1.343825364 | D35: ='Calcs-SI'!D35*'Calcs-Field'!$I$11 -> 0.00283158559 | E35: ='Calcs-SI'!E35/'Calcs-Field'!$I$11 -> 353.1590228 | F35: ='Calcs-SI'!F35*'Calcs-Field'!$I$9 -> 18.87697927 | G35: ='Calcs-SI'!G35 -> 0.0388385191 | H35: ='Calcs-SI'!H35 -> 0.05219218705 | I35: ='Calcs-SI'!I35*'Calcs-Field'!$I$8 -> 6745.561213 | J35: ='Calcs-SI'!J35*'Calcs-Field'!$I$8 -> 173682.2456 | K35: ='Calcs-SI'!K35 -> 9093.009492 | L35: ='Calcs-SI'!L35*'Calcs-Field'!$I$8^2 -> 126364410.3 | M35: ='Calcs-SI'!M35*'Calcs-Field'!$I$8^2 -> 2738215040 | N35: ='Calcs-SI'!N35/'Calcs-Field'!$I$8 -> 4.545179289e-05 | O35: ='Calcs-SI'!O35/'Calcs-Field'!$I$8 -> 8.716636208e-05
A36: ='Calcs-SI'!A36*$I$8 -> 8702.262 | B36: ='Calcs-SI'!B36 -> 13.1189352 | C36: ='Calcs-SI'!C36 -> 1.312249146 | D36: ='Calcs-SI'!D36*'Calcs-Field'!$I$11 -> 0.002880261542 | E36: ='Calcs-SI'!E36/'Calcs-Field'!$I$11 -> 347.1906927 | F36: ='Calcs-SI'!F36*'Calcs-Field'!$I$9 -> 18.55796139 | G36: ='Calcs-SI'!G36 -> 0.03793395862 | H36: ='Calcs-SI'!H36 -> 0.04977880481 | I36: ='Calcs-SI'!I36*'Calcs-Field'!$I$8 -> 6631.562325 | J36: ='Calcs-SI'!J36*'Calcs-Field'!$I$8 -> 174818.6207 | K36: ='Calcs-SI'!K36 -> 9152.503598 | L36: ='Calcs-SI'!L36*'Calcs-Field'!$I$8^2 -> 127184185.6 | M36: ='Calcs-SI'!M36*'Calcs-Field'!$I$8^2 -> 2611850629 | N36: ='Calcs-SI'!N36/'Calcs-Field'!$I$8 -> 4.862332096e-05 | O36: ='Calcs-SI'!O36/'Calcs-Field'!$I$8 -> 8.698811735e-05
A37: ='Calcs-SI'!A37*$I$8 -> 8339.66775 | B37: ='Calcs-SI'!B37 -> 12.5723129 | C37: ='Calcs-SI'!C37 -> 1.280753775 | D37: ='Calcs-SI'!D37*'Calcs-Field'!$I$11 -> 0.002933355349 | E37: ='Calcs-SI'!E37/'Calcs-Field'!$I$11 -> 340.9065323 | F37: ='Calcs-SI'!F37*'Calcs-Field'!$I$9 -> 18.22206181 | G37: ='Calcs-SI'!G37 -> 0.03700929799 | H37: ='Calcs-SI'!H37 -> 0.0473997981 | I37: ='Calcs-SI'!I37*'Calcs-Field'!$I$8 -> 6511.530877 | J37: ='Calcs-SI'!J37*'Calcs-Field'!$I$8 -> 175943.107 | K37: ='Calcs-SI'!K37 -> 9211.375271 | L37: ='Calcs-SI'!L37*'Calcs-Field'!$I$8^2 -> 127991630.5 | M37: ='Calcs-SI'!M37*'Calcs-Field'!$I$8^2 -> 2484666444 | N37: ='Calcs-SI'!N37/'Calcs-Field'!$I$8 -> 5.220098566e-05 | O37: ='Calcs-SI'!O37/'Calcs-Field'!$I$8 -> 8.671710755e-05
A38: ='Calcs-SI'!A38*$I$8 -> 7977.0735 | B38: ='Calcs-SI'!B38 -> 12.0256906 | C38: ='Calcs-SI'!C38 -> 1.249376796 | D38: ='Calcs-SI'!D38*'Calcs-Field'!$I$11 -> 0.00299155935 | E38: ='Calcs-SI'!E38/'Calcs-Field'!$I$11 -> 334.2738295 | F38: ='Calcs-SI'!F38*'Calcs-Field'!$I$9 -> 17.86753202 | G38: ='Calcs-SI'!G38 -> 0.03606328832 | H38: ='Calcs-SI'!H38 -> 0.04505663561 | I38: ='Calcs-SI'!I38*'Calcs-Field'!$I$8 -> 6384.842049 | J38: ='Calcs-SI'!J38*'Calcs-Field'!$I$8 -> 177045.476 | K38: ='Calcs-SI'!K38 -> 9269.089011 | L38: ='Calcs-SI'!L38*'Calcs-Field'!$I$8^2 -> 128778159.7 | M38: ='Calcs-SI'!M38*'Calcs-Field'!$I$8^2 -> 2356674813 | N38: ='Calcs-SI'!N38/'Calcs-Field'!$I$8 -> 5.626014258e-05 | O38: ='Calcs-SI'!O38/'Calcs-Field'!$I$8 -> 8.633082906e-05
A39: ='Calcs-SI'!A39*$I$8 -> 7614.47925 | B39: ='Calcs-SI'!B39 -> 11.4790683 | C39: ='Calcs-SI'!C39 -> 1.218165002 | D39: ='Calcs-SI'!D39*'Calcs-Field'!$I$11 -> 0.00305572095 | E39: ='Calcs-SI'!E39/'Calcs-Field'!$I$11 -> 327.2550132 | F39: ='Calcs-SI'!F39*'Calcs-Field'!$I$9 -> 17.49236378 | G39: ='Calcs-SI'!G39 -> 0.03509459457 | H39: ='Calcs-SI'!H39 -> 0.04275100686 | I39: ='Calcs-SI'!I39*'Calcs-Field'!$I$8 -> 6250.778209 | J39: ='Calcs-SI'!J39*'Calcs-Field'!$I$8 -> 178112.2787 | K39: ='Calcs-SI'!K39 -> 9324.9407 | L39: ='Calcs-SI'!L39*'Calcs-Field'!$I$8^2 -> 129532466.9 | M39: ='Calcs-SI'!M39*'Calcs-Field'!$I$8^2 -> 2227896653 | N39: ='Calcs-SI'!N39/'Calcs-Field'!$I$8 -> 6.089434246e-05 | O39: ='Calcs-SI'!O39/'Calcs-Field'!$I$8 -> 8.580072353e-05
A40: ='Calcs-SI'!A40*$I$8 -> 7251.885 | B40: ='Calcs-SI'!B40 -> 10.932446 | C40: ='Calcs-SI'!C40 -> 1.187176854 | D40: ='Calcs-SI'!D40*'Calcs-Field'!$I$11 -> 0.003126887766 | E40: ='Calcs-SI'!E40/'Calcs-Field'!$I$11 -> 319.8068094 | F40: ='Calcs-SI'!F40*'Calcs-Field'!$I$9 -> 17.09424401 | G40: ='Calcs-SI'!G40 -> 0.03410180662 | H40: ='Calcs-SI'!H40 -> 0.04048487549 | I40: ='Calcs-SI'!I40*'Calcs-Field'!$I$8 -> 6108.512794 | J40: ='Calcs-SI'!J40*'Calcs-Field'!$I$8 -> 179125.7825 | K40: ='Calcs-SI'!K40 -> 9378.001962 | L40: ='Calcs-SI'!L40*'Calcs-Field'!$I$8^2 -> 130239617.1 | M40: ='Calcs-SI'!M40*'Calcs-Field'!$I$8^2 -> 2098364187 | N40: ='Calcs-SI'!N40/'Calcs-Field'!$I$8 -> 6.622064247e-05 | O40: ='Calcs-SI'!O40/'Calcs-Field'!$I$8 -> 8.509035401e-05
A41: ='Calcs-SI'!A41*$I$8 -> 6889.29075 | B41: ='Calcs-SI'!B41 -> 10.3858237 | C41: ='Calcs-SI'!C41 -> 1.156485842 | D41: ='Calcs-SI'!D41*'Calcs-Field'!$I$11 -> 0.003206369642 | E41: ='Calcs-SI'!E41/'Calcs-Field'!$I$11 -> 311.8792004 | F41: ='Calcs-SI'!F41*'Calcs-Field'!$I$9 -> 16.67049918 | G41: ='Calcs-SI'!G41 -> 0.03308345389 | H41: ='Calcs-SI'!H41 -> 0.03826054604 | I41: ='Calcs-SI'!I41*'Calcs-Field'!$I$8 -> 5957.090436 | J41: ='Calcs-SI'!J41*'Calcs-Field'!$I$8 -> 180062.5308 | K41: ='Calcs-SI'!K41 -> 9427.044752 | L41: ='Calcs-SI'!L41*'Calcs-Field'!$I$8^2 -> 130879806.1 | M41: ='Calcs-SI'!M41*'Calcs-Field'!$I$8^2 -> 1968124569 | N41: ='Calcs-SI'!N41/'Calcs-Field'!$I$8 -> 7.238672695e-05 | O41: ='Calcs-SI'!O41/'Calcs-Field'!$I$8 -> 8.415295974e-05
A42: ='Calcs-SI'!A42*$I$8 -> 6526.6965 | B42: ='Calcs-SI'!B42 -> 9.8392014 | C42: ='Calcs-SI'!C42 -> 1.12618475 | D42: ='Calcs-SI'!D42*'Calcs-Field'!$I$11 -> 0.003295823952 | E42: ='Calcs-SI'!E42/'Calcs-Field'!$I$11 -> 303.4142644 | F42: ='Calcs-SI'!F42*'Calcs-Field'!$I$9 -> 16.21803326 | G42: ='Calcs-SI'!G42 -> 0.03203804053 | H42: ='Calcs-SI'!H42 -> 0.03608075268 | I42: ='Calcs-SI'!I42*'Calcs-Field'!$I$8 -> 5795.404793 | J42: ='Calcs-SI'!J42*'Calcs-Field'!$I$8 -> 180891.3621 | K42: ='Calcs-SI'!K42 -> 9470.437622 | L42: ='Calcs-SI'!L42*'Calcs-Field'!$I$8^2 -> 131426654 | M42: ='Calcs-SI'!M42*'Calcs-Field'!$I$8^2 -> 1837244763 | N42: ='Calcs-SI'!N42/'Calcs-Field'!$I$8 -> 7.958041474e-05 | O42: ='Calcs-SI'!O42/'Calcs-Field'!$I$8 -> 8.292825141e-05
A43: ='Calcs-SI'!A43*$I$8 -> 6164.10225 | B43: ='Calcs-SI'!B43 -> 9.2925791 | C43: ='Calcs-SI'!C43 -> 1.09639129 | D43: ='Calcs-SI'!D43*'Calcs-Field'!$I$11 -> 0.003397375291 | E43: ='Calcs-SI'!E43/'Calcs-Field'!$I$11 -> 294.3448734 | F43: ='Calcs-SI'!F43*'Calcs-Field'!$I$9 -> 15.73325815 | G43: ='Calcs-SI'!G43 -> 0.03096410464 | H43: ='Calcs-SI'!H43 -> 0.03394877463 | I43: ='Calcs-SI'!I43*'Calcs-Field'!$I$8 -> 5622.173676 | J43: ='Calcs-SI'!J43*'Calcs-Field'!$I$8 -> 181570.6845 | K43: ='Calcs-SI'!K43 -> 9506.003059 | L43: ='Calcs-SI'!L43*'Calcs-Field'!$I$8^2 -> 131844854.9 | M43: ='Calcs-SI'!M43*'Calcs-Field'!$I$8^2 -> 1705818109 | N43: ='Calcs-SI'!N43/'Calcs-Field'!$I$8 -> 8.804240577e-05 | O43: ='Calcs-SI'!O43/'Calcs-Field'!$I$8 -> 8.133822162e-05
A44: ='Calcs-SI'!A44*$I$8 -> 5801.508 | B44: ='Calcs-SI'!B44 -> 8.7459568 | C44: ='Calcs-SI'!C44 -> 1.067255458 | D44: ='Calcs-SI'!D44*'Calcs-Field'!$I$11 -> 0.003513785694 | E44: ='Calcs-SI'!E44/'Calcs-Field'!$I$11 -> 284.5933381 | F44: ='Calcs-SI'!F44*'Calcs-Field'!$I$9 -> 15.2120212 | G44: ='Calcs-SI'!G44 -> 0.02986031769 | H44: ='Calcs-SI'!H44 -> 0.03186858704 | I44: ='Calcs-SI'!I44*'Calcs-Field'!$I$8 -> 5435.913169 | J44: ='Calcs-SI'!J44*'Calcs-Field'!$I$8 -> 182044.7199 | K44: ='Calcs-SI'!K44 -> 9530.820839 | L44: ='Calcs-SI'!L44*'Calcs-Field'!$I$8^2 -> 132086943.9 | M44: ='Calcs-SI'!M44*'Calcs-Field'!$I$8^2 -> 1573973255 | N44: ='Calcs-SI'!N44/'Calcs-Field'!$I$8 -> 9.808329593e-05 | O44: ='Calcs-SI'!O44/'Calcs-Field'!$I$8 -> 7.928179876e-05
A45: ='Calcs-SI'!A45*$I$8 -> 5438.91375 | B45: ='Calcs-SI'!B45 -> 8.1993345 | C45: ='Calcs-SI'!C45 -> 1.038969057 | D45: ='Calcs-SI'!D45*'Calcs-Field'!$I$11 -> 0.003648700555 | E45: ='Calcs-SI'!E45/'Calcs-Field'!$I$11 -> 274.0701751 | F45: ='Calcs-SI'!F45*'Calcs-Field'!$I$9 -> 14.64953938 | G45: ='Calcs-SI'!G45 -> 0.02872564579 | H45: ='Calcs-SI'!H45 -> 0.02984505712 | I45: ='Calcs-SI'!I45*'Calcs-Field'!$I$8 -> 5234.914085 | J45: ='Calcs-SI'!J45*'Calcs-Field'!$I$8 -> 182238.3428 | K45: ='Calcs-SI'!K45 -> 9540.957829 | L45: ='Calcs-SI'!L45*'Calcs-Field'!$I$8^2 -> 132088881.4 | M45: ='Calcs-SI'!M45*'Calcs-Field'!$I$8^2 -> 1441886311 | N45: ='Calcs-SI'!N45/'Calcs-Field'!$I$8 -> 0.0001101060648 | O45: ='Calcs-SI'!O45/'Calcs-Field'!$I$8 -> 7.662830824e-05
A46: ='Calcs-SI'!A46*$I$8 -> 5076.3195 | B46: ='Calcs-SI'!B46 -> 7.6527122 | C46: ='Calcs-SI'!C46 -> 1.011777737 | D46: ='Calcs-SI'!D46*'Calcs-Field'!$I$11 -> 0.003807009421 | E46: ='Calcs-SI'!E46/'Calcs-Field'!$I$11 -> 262.6733715 | F46: ='Calcs-SI'!F46*'Calcs-Field'!$I$9 -> 14.04035992 | G46: ='Calcs-SI'!G46 -> 0.0275596054 | H46: ='Calcs-SI'!H46 -> 0.02788419518 | I46: ='Calcs-SI'!I46*'Calcs-Field'!$I$8 -> 5017.227911 | J46: ='Calcs-SI'!J46*'Calcs-Field'!$I$8 -> 182050.0634 | K46: ='Calcs-SI'!K46 -> 9531.100595 | L46: ='Calcs-SI'!L46*'Calcs-Field'!$I$8^2 -> 131764126.8 | M46: ='Calcs-SI'!M46*'Calcs-Field'!$I$8^2 -> 1309797429 | N46: ='Calcs-SI'!N46/'Calcs-Field'!$I$8 -> 0.0001246351922 | O46: ='Calcs-SI'!O46/'Calcs-Field'!$I$8 -> 7.321013713e-05
A47: ='Calcs-SI'!A47*$I$8 -> 4713.72525 | B47: ='Calcs-SI'!B47 -> 7.1060899 | C47: ='Calcs-SI'!C47 -> 0.985995671 | D47: ='Calcs-SI'!D47*'Calcs-Field'!$I$11 -> 0.003995383984 | E47: ='Calcs-SI'!E47/'Calcs-Field'!$I$11 -> 250.2888343 | F47: ='Calcs-SI'!F47*'Calcs-Field'!$I$9 -> 13.37838433 | G47: ='Calcs-SI'!G47 -> 0.02636265687 | H47: ='Calcs-SI'!H47 -> 0.02599346555 | I47: ='Calcs-SI'!I47*'Calcs-Field'!$I$8 -> 4780.675401 | J47: ='Calcs-SI'!J47*'Calcs-Field'!$I$8 -> 181342.7009 | K47: ='Calcs-SI'!K47 -> 9494.067141 | L47: ='Calcs-SI'!L47*'Calcs-Field'!$I$8^2 -> 130995960.1 | M47: ='Calcs-SI'!M47*'Calcs-Field'!$I$8^2 -> 1178033302 | N47: ='Calcs-SI'!N47/'Calcs-Field'!$I$8 -> 0.0001423530326 | O47: ='Calcs-SI'!O47/'Calcs-Field'!$I$8 -> 6.881599108e-05
A48: ='Calcs-SI'!A48*$I$8 -> 4351.131 | B48: ='Calcs-SI'!B48 -> 6.5594676 | C48: ='Calcs-SI'!C48 -> 0.9620221116 | D48: ='Calcs-SI'!D48*'Calcs-Field'!$I$11 -> 0.004223093302 | E48: ='Calcs-SI'!E48/'Calcs-Field'!$I$11 -> 236.7932528 | F48: ='Calcs-SI'!F48*'Calcs-Field'!$I$9 -> 12.65702144 | G48: ='Calcs-SI'!G48 -> 0.02513679036 | H48: ='Calcs-SI'!H48 -> 0.02418214814 | I48: ='Calcs-SI'!I48*'Calcs-Field'!$I$8 -> 4522.901239 | J48: ='Calcs-SI'!J48*'Calcs-Field'!$I$8 -> 179931.5336 | K48: ='Calcs-SI'!K48 -> 9420.186484 | L48: ='Calcs-SI'!L48*'Calcs-Field'!$I$8^2 -> 129628189 | M48: ='Calcs-SI'!M48*'Calcs-Field'!$I$8^2 -> 1047037342 | N48: ='Calcs-SI'!N48/'Calcs-Field'!$I$8 -> 0.0001641425991 | O48: ='Calcs-SI'!O48/'Calcs-Field'!$I$8 -> 6.31882134e-05
A49: ='Calcs-SI'!A49*$I$8 -> 3988.53675 | B49: ='Calcs-SI'!B49 -> 6.0128453 | C49: ='Calcs-SI'!C49 -> 0.9403570785 | D49: ='Calcs-SI'!D49*'Calcs-Field'!$I$11 -> 0.004503259577 | E49: ='Calcs-SI'!E49/'Calcs-Field'!$I$11 -> 222.061372 | F49: ='Calcs-SI'!F49*'Calcs-Field'!$I$9 -> 11.86957615 | G49: ='Calcs-SI'!G49 -> 0.02388635778 | H49: ='Calcs-SI'!H49 -> 0.02246170562 | I49: ='Calcs-SI'!I49*'Calcs-Field'!$I$8 -> 4241.512976 | J49: ='Calcs-SI'!J49*'Calcs-Field'!$I$8 -> 177570.5201 | K49: ='Calcs-SI'!K49 -> 9296.577318 | L49: ='Calcs-SI'!L49*'Calcs-Field'!$I$8^2 -> 127455377.8 | M49: ='Calcs-SI'!M49*'Calcs-Field'!$I$8^2 -> 917409153.3 | N49: ='Calcs-SI'!N49/'Calcs-Field'!$I$8 -> 0.0001911332949 | O49: ='Calcs-SI'!O49/'Calcs-Field'!$I$8 -> 5.603138089e-05
A50: ='Calcs-SI'!A50*$I$8 -> 3625.9425 | B50: ='Calcs-SI'!B50 -> 5.466223 | C50: ='Calcs-SI'!C50 -> 0.9216102291 | D50: ='Calcs-SI'!D50*'Calcs-Field'!$I$11 -> 0.004854831429 | E50: ='Calcs-SI'!E50/'Calcs-Field'!$I$11 -> 205.9803753 | F50: ='Calcs-SI'!F50*'Calcs-Field'!$I$9 -> 11.01001822 | G50: ='Calcs-SI'!G50 -> 0.02261915277 | H50: ='Calcs-SI'!H50 -> 0.02084604257 | I50: ='Calcs-SI'!I50*'Calcs-Field'!$I$8 -> 3934.355746 | J50: ='Calcs-SI'!J50*'Calcs-Field'!$I$8 -> 173939.1296 | K50: ='Calcs-SI'!K50 -> 9106.458469 | L50: ='Calcs-SI'!L50*'Calcs-Field'!$I$8^2 -> 124215781.2 | M50: ='Calcs-SI'!M50*'Calcs-Field'!$I$8^2 -> 789953775.4 | N50: ='Calcs-SI'!N50/'Calcs-Field'!$I$8 -> 0.0002247443867 | O50: ='Calcs-SI'!O50/'Calcs-Field'!$I$8 -> 4.704449432e-05
A51: ='Calcs-SI'!A51*$I$8 -> 3263.34825 | B51: ='Calcs-SI'!B51 -> 4.9196007 | C51: ='Calcs-SI'!C51 -> 0.9064912453 | D51: ='Calcs-SI'!D51*'Calcs-Field'!$I$11 -> 0.005305764543 | E51: ='Calcs-SI'!E51/'Calcs-Field'!$I$11 -> 188.4742513 | F51: ='Calcs-SI'!F51*'Calcs-Field'!$I$9 -> 10.07428469 | G51: ='Calcs-SI'!G51 -> 0.02134761943 | H51: ='Calcs-SI'!H51 -> 0.01935143012 | I51: ='Calcs-SI'!I51*'Calcs-Field'!$I$8 -> 3599.97768 | J51: ='Calcs-SI'!J51*'Calcs-Field'!$I$8 -> 168636.0248 | K51: ='Calcs-SI'!K51 -> 8828.81822 | L51: ='Calcs-SI'!L51*'Calcs-Field'!$I$8^2 -> 119593402.5 | M51: ='Calcs-SI'!M51*'Calcs-Field'!$I$8^2 -> 665737994.3 | N51: ='Calcs-SI'!N51/'Calcs-Field'!$I$8 -> 0.0002667280807 | O51: ='Calcs-SI'!O51/'Calcs-Field'!$I$8 -> 3.599282998e-05
A52: ='Calcs-SI'!A52*$I$8 -> 2900.754 | B52: ='Calcs-SI'!B52 -> 4.3729784 | C52: ='Calcs-SI'!C52 -> 0.8957654138 | D52: ='Calcs-SI'!D52*'Calcs-Field'!$I$11 -> 0.005898358583 | E52: ='Calcs-SI'!E52/'Calcs-Field'!$I$11 -> 169.5386921 | F52: ='Calcs-SI'!F52*'Calcs-Field'!$I$9 -> 9.062145294 | G52: ='Calcs-SI'!G52 -> 0.02008980276 | H52: ='Calcs-SI'!H52 -> 0.01799575048 | I52: ='Calcs-SI'!I52*'Calcs-Field'!$I$8 -> 3238.296495 | J52: ='Calcs-SI'!J52*'Calcs-Field'!$I$8 -> 161191.0547 | K52: ='Calcs-SI'!K52 -> 8439.042143 | L52: ='Calcs-SI'!L52*'Calcs-Field'!$I$8^2 -> 113238728.5 | M52: ='Calcs-SI'!M52*'Calcs-Field'!$I$8^2 -> 546144591.7 | N52: ='Calcs-SI'!N52/'Calcs-Field'!$I$8 -> 0.0003192537135 | O52: ='Calcs-SI'!O52/'Calcs-Field'!$I$8 -> 2.282790154e-05
A53: ='Calcs-SI'!A53*$I$8 -> 2538.15975 | B53: ='Calcs-SI'!B53 -> 3.8263561 | C53: ='Calcs-SI'!C53 -> 0.8901599419 | D53: ='Calcs-SI'!D53*'Calcs-Field'!$I$11 -> 0.006698797894 | E53: ='Calcs-SI'!E53/'Calcs-Field'!$I$11 -> 149.2805151 | F53: ='Calcs-SI'!F53*'Calcs-Field'!$I$9 -> 7.979309621 | G53: ='Calcs-SI'!G53 -> 0.01886932732 | H53: ='Calcs-SI'!H53 -> 0.01679671931 | I53: ='Calcs-SI'!I53*'Calcs-Field'!$I$8 -> 2851.352471 | J53: ='Calcs-SI'!J53*'Calcs-Field'!$I$8 -> 151110.4462 | K53: ='Calcs-SI'!K53 -> 7911.279112 | L53: ='Calcs-SI'!L53*'Calcs-Field'!$I$8^2 -> 104816666.1 | M53: ='Calcs-SI'!M53*'Calcs-Field'!$I$8^2 -> 432905863.2 | N53: ='Calcs-SI'!N53/'Calcs-Field'!$I$8 -> 0.0003851894751 | O53: ='Calcs-SI'!O53/'Calcs-Field'!$I$8 -> 7.830521953e-06
A54: ='Calcs-SI'!A54*$I$8 -> 2175.5655 | B54: ='Calcs-SI'!B54 -> 3.2797338 | C54: ='Calcs-SI'!C54 -> 0.8902258704 | D54: ='Calcs-SI'!D54*'Calcs-Field'!$I$11 -> 0.007815843037 | E54: ='Calcs-SI'!E54/'Calcs-Field'!$I$11 -> 127.9452511 | F54: ='Calcs-SI'!F54*'Calcs-Field'!$I$9 -> 6.838901731 | G54: ='Calcs-SI'!G54 -> 0.01771359647 | H54: ='Calcs-SI'!H54 -> 0.01576910184 | I54: ='Calcs-SI'!I54*'Calcs-Field'!$I$8 -> 2443.835404 | J54: ='Calcs-SI'!J54*'Calcs-Field'!$I$8 -> 137963.8182 | K54: ='Calcs-SI'!K54 -> 7222.996826 | L54: ='Calcs-SI'!L54*'Calcs-Field'!$I$8^2 -> 94079600.73 | M54: ='Calcs-SI'!M54*'Calcs-Field'!$I$8^2 -> 328089197.1 | N54: ='Calcs-SI'!N54/'Calcs-Field'!$I$8 -> 0.0004689808758 | O54: ='Calcs-SI'!O54/'Calcs-Field'!$I$8 -> -8.306047709e-06
A55: ='Calcs-SI'!A55*$I$8 -> 1812.97125 | B55: ='Calcs-SI'!B55 -> 2.7331115 | C55: ='Calcs-SI'!C55 -> 0.8961980984 | D55: ='Calcs-SI'!D55*'Calcs-Field'!$I$11 -> 0.0094419323 | E55: ='Calcs-SI'!E55/'Calcs-Field'!$I$11 -> 105.9105243 | F55: ='Calcs-SI'!F55*'Calcs-Field'!$I$9 -> 5.661106305 | G55: ='Calcs-SI'!G55 -> 0.01665004572 | H55: ='Calcs-SI'!H55 -> 0.01492173931 | I55: ='Calcs-SI'!I55*'Calcs-Field'!$I$8 -> 2022.958153 | J55: ='Calcs-SI'!J55*'Calcs-Field'!$I$8 -> 121498.6546 | K55: ='Calcs-SI'!K55 -> 6360.974983 | L55: ='Calcs-SI'!L55*'Calcs-Field'!$I$8^2 -> 80944524.57 | M55: ='Calcs-SI'!M55*'Calcs-Field'!$I$8^2 -> 234009596.4 | N55: ='Calcs-SI'!N55/'Calcs-Field'!$I$8 -> 0.000578987887 | O55: ='Calcs-SI'!O55/'Calcs-Field'!$I$8 -> -2.45622447e-05
A56: ='Calcs-SI'!A56*$I$8 -> 1450.377 | B56: ='Calcs-SI'!B56 -> 2.1864892 | C56: ='Calcs-SI'!C56 -> 0.9079219954 | D56: ='Calcs-SI'!D56*'Calcs-Field'!$I$11 -> 0.01195681238 | E56: ='Calcs-SI'!E56/'Calcs-Field'!$I$11 -> 83.63433064 | F56: ='Calcs-SI'!F56*'Calcs-Field'!$I$9 -> 4.470404049 | G56: ='Calcs-SI'!G56 -> 0.01570170627 | H56: ='Calcs-SI'!H56 -> 0.01425592449 | I56: ='Calcs-SI'!I56*'Calcs-Field'!$I$8 -> 1597.468733 | J56: ='Calcs-SI'!J56*'Calcs-Field'!$I$8 -> 101738.544 | K56: ='Calcs-SI'!K56 -> 5326.448554 | L56: ='Calcs-SI'!L56*'Calcs-Field'!$I$8^2 -> 65540754.46 | M56: ='Calcs-SI'!M56*'Calcs-Field'!$I$8^2 -> 153065071.8 | N56: ='Calcs-SI'!N56/'Calcs-Field'!$I$8 -> 0.0007333857675 | O56: ='Calcs-SI'!O56/'Calcs-Field'!$I$8 -> -3.98667266e-05
A57: ='Calcs-SI'!A57*$I$8 -> 1087.78275 | B57: ='Calcs-SI'!B57 -> 1.6398669 | C57: ='Calcs-SI'!C57 -> 0.9248948679 | D57: ='Calcs-SI'!D57*'Calcs-Field'!$I$11 -> 0.01624044718 | E57: ='Calcs-SI'!E57/'Calcs-Field'!$I$11 -> 61.57465918 | F57: ='Calcs-SI'!F57*'Calcs-Field'!$I$9 -> 3.291275289 | G57: ='Calcs-SI'!G57 -> 0.01488441546 | H57: ='Calcs-SI'!H57 -> 0.01376651947 | I57: ='Calcs-SI'!I57*'Calcs-Field'!$I$8 -> 1176.115024 | J57: ='Calcs-SI'!J57*'Calcs-Field'!$I$8 -> 79016.54099 | K57: ='Calcs-SI'!K57 -> 4136.854373 | L57: ='Calcs-SI'!L57*'Calcs-Field'!$I$8^2 -> 48206573.31 | M57: ='Calcs-SI'!M57*'Calcs-Field'!$I$8^2 -> 87524317.37 | N57: ='Calcs-SI'!N57/'Calcs-Field'!$I$8 -> 0.0009770538293 | O57: ='Calcs-SI'!O57/'Calcs-Field'!$I$8 -> -5.341509979e-05
A58: ='Calcs-SI'!A58*$I$8 -> 725.1885 | B58: ='Calcs-SI'!B58 -> 1.0932446 | C58: ='Calcs-SI'!C58 -> 0.9463997683 | D58: ='Calcs-SI'!D58*'Calcs-Field'!$I$11 -> 0.0249270852 | E58: ='Calcs-SI'!E58/'Calcs-Field'!$I$11 -> 40.11700494 | F58: ='Calcs-SI'!F58*'Calcs-Field'!$I$9 -> 2.144325422 | G58: ='Calcs-SI'!G58 -> 0.01420775262 | H58: ='Calcs-SI'!H58 -> 0.01344621379 | I58: ='Calcs-SI'!I58*'Calcs-Field'!$I$8 -> 766.2602256 | J58: ='Calcs-SI'!J58*'Calcs-Field'!$I$8 -> 53932.54275 | K58: ='Calcs-SI'!K58 -> 2823.599622 | L58: ='Calcs-SI'!L58*'Calcs-Field'!$I$8^2 -> 29445321.45 | M58: ='Calcs-SI'!M58*'Calcs-Field'!$I$8^2 -> 39317744.06 | N58: ='Calcs-SI'!N58/'Calcs-Field'!$I$8 -> 0.001447465175 | O58: ='Calcs-SI'!O58/'Calcs-Field'!$I$8 -> -6.484102571e-05
A59: ='Calcs-SI'!A59*$I$8 -> 362.59425 | B59: ='Calcs-SI'!B59 -> 0.5466223 | C59: ='Calcs-SI'!C59 -> 0.9716650342 | D59: ='Calcs-SI'!D59*'Calcs-Field'!$I$11 -> 0.05118508669 | E59: ='Calcs-SI'!E59/'Calcs-Field'!$I$11 -> 19.53694064 | F59: ='Calcs-SI'!F59*'Calcs-Field'!$I$9 -> 1.044284301 | G59: ='Calcs-SI'!G59 -> 0.01368177688 | H59: ='Calcs-SI'!H59 -> 0.0132941042 | I59: ='Calcs-SI'!I59*'Calcs-Field'!$I$8 -> 373.1679511 | J59: ='Calcs-SI'!J59*'Calcs-Field'!$I$8 -> 27274.8163 | K59: ='Calcs-SI'!K59 -> 1427.95346 | L59: ='Calcs-SI'!L59*'Calcs-Field'!$I$8^2 -> 9872422.611 | M59: ='Calcs-SI'!M59*'Calcs-Field'!$I$8^2 -> 9872422.611 | N59: ='Calcs-SI'!N59/'Calcs-Field'!$I$8 -> 0.002834261247 | O59: ='Calcs-SI'!O59/'Calcs-Field'!$I$8 -> -7.419402166e-05
A60: ='Calcs-SI'!A60*$I$8 -> 14.50377 | B60: ='Calcs-SI'!B60 -> 0.021864892 | C60: ='Calcs-SI'!C60 -> 0.9988144848 | D60: ='Calcs-SI'!D60*'Calcs-Field'!$I$11 -> 1.315381438 | E60: ='Calcs-SI'!E60/'Calcs-Field'!$I$11 -> 0.7602357547 | F60: ='Calcs-SI'!F60*'Calcs-Field'!$I$9 -> 0.04063595619 | G60: ='Calcs-SI'!G60 -> 0.0133607364 | H60: ='Calcs-SI'!H60 -> 0.01334489704 | I60: ='Calcs-SI'!I60*'Calcs-Field'!$I$8 -> 14.52098485 | J60: ='Calcs-SI'!J60*'Calcs-Field'!$I$8 -> 1086.840157 | K60: ='Calcs-SI'!K60 -> 56.9007375 | L60: ='Calcs-SI'!L60*'Calcs-Field'!$I$8^2 -> 0 | M60: ='Calcs-SI'!M60*'Calcs-Field'!$I$8^2 -> 0 | N60: ='Calcs-SI'!N60/'Calcs-Field'!$I$8 -> 0.06902928184 | O60: ='Calcs-SI'!O60/'Calcs-Field'!$I$8 -> -8.159412239e-05
A61: ='Calcs-SI'!A61*$I$8 -> 14.50377 | B61: ='Calcs-SI'!B61 -> 0.021864892 | C61: ='Calcs-SI'!C61 -> 0.9988144848 | D61: ='Calcs-SI'!D61*'Calcs-Field'!$I$11 -> 1.315381438 | E61: ='Calcs-SI'!E61/'Calcs-Field'!$I$11 -> 0.7602357547 | F61: ='Calcs-SI'!F61*'Calcs-Field'!$I$9 -> 0.04063595619 | G61: ='Calcs-SI'!G61 -> 0.0133607364 | H61: ='Calcs-SI'!H61 -> 0.01334489704 | I61: ='Calcs-SI'!I61*'Calcs-Field'!$I$8 -> 14.52098485 | J61: ='Calcs-SI'!J61*'Calcs-Field'!$I$8 -> 1086.840157 | K61: ='Calcs-SI'!K61 -> 56.9007375 | L61: ='Calcs-SI'!L61*'Calcs-Field'!$I$8^2 -> 0 | M61: ='Calcs-SI'!M61*'Calcs-Field'!$I$8^2 -> 0 | N61: ='Calcs-SI'!N61/'Calcs-Field'!$I$8 -> 0.06902928184 | O61: ='Calcs-SI'!O61/'Calcs-Field'!$I$8 -> -8.159412239e-05
A62: ='Calcs-SI'!A62*$I$8 -> 14.50377 | B62: ='Calcs-SI'!B62 -> 0.021864892 | C62: ='Calcs-SI'!C62 -> 0.9988144848 | D62: ='Calcs-SI'!D62*'Calcs-Field'!$I$11 -> 1.315381438 | E62: ='Calcs-SI'!E62/'Calcs-Field'!$I$11 -> 0.7602357547 | F62: ='Calcs-SI'!F62*'Calcs-Field'!$I$9 -> 0.04063595619 | G62: ='Calcs-SI'!G62 -> 0.0133607364 | H62: ='Calcs-SI'!H62 -> 0.01334489704 | I62: ='Calcs-SI'!I62*'Calcs-Field'!$I$8 -> 14.52098485 | J62: ='Calcs-SI'!J62*'Calcs-Field'!$I$8 -> 1086.840157 | K62: ='Calcs-SI'!K62 -> 56.9007375 | L62: ='Calcs-SI'!L62*'Calcs-Field'!$I$8^2 -> 0 | M62: ='Calcs-SI'!M62*'Calcs-Field'!$I$8^2 -> 0 | N62: ='Calcs-SI'!N62/'Calcs-Field'!$I$8 -> 0.06902928184 | O62: ='Calcs-SI'!O62/'Calcs-Field'!$I$8 -> -8.159412239e-05
A63: ='Calcs-SI'!A63*$I$8 -> 14.50377 | B63: ='Calcs-SI'!B63 -> 0.021864892 | C63: ='Calcs-SI'!C63 -> 0.9988144848 | D63: ='Calcs-SI'!D63*'Calcs-Field'!$I$11 -> 1.315381438 | E63: ='Calcs-SI'!E63/'Calcs-Field'!$I$11 -> 0.7602357547 | F63: ='Calcs-SI'!F63*'Calcs-Field'!$I$9 -> 0.04063595619 | G63: ='Calcs-SI'!G63 -> 0.0133607364 | H63: ='Calcs-SI'!H63 -> 0.01334489704 | I63: ='Calcs-SI'!I63*'Calcs-Field'!$I$8 -> 14.52098485 | J63: ='Calcs-SI'!J63*'Calcs-Field'!$I$8 -> 1086.840157 | K63: ='Calcs-SI'!K63 -> 56.9007375 | L63: ='Calcs-SI'!L63*'Calcs-Field'!$I$8^2 -> 0 | M63: ='Calcs-SI'!M63*'Calcs-Field'!$I$8^2 -> 0 | N63: ='Calcs-SI'!N63/'Calcs-Field'!$I$8 -> 0.06902928184 | O63: ='Calcs-SI'!O63/'Calcs-Field'!$I$8 -> -8.159412239e-05
A64: ='Calcs-SI'!A64*$I$8 -> 14.50377 | B64: ='Calcs-SI'!B64 -> 0.021864892 | C64: ='Calcs-SI'!C64 -> 0.9988144848 | D64: ='Calcs-SI'!D64*'Calcs-Field'!$I$11 -> 1.315381438 | E64: ='Calcs-SI'!E64/'Calcs-Field'!$I$11 -> 0.7602357547 | F64: ='Calcs-SI'!F64*'Calcs-Field'!$I$9 -> 0.04063595619 | G64: ='Calcs-SI'!G64 -> 0.0133607364 | H64: ='Calcs-SI'!H64 -> 0.01334489704 | I64: ='Calcs-SI'!I64*'Calcs-Field'!$I$8 -> 14.52098485 | J64: ='Calcs-SI'!J64*'Calcs-Field'!$I$8 -> 1086.840157 | K64: ='Calcs-SI'!K64 -> 56.9007375 | L64: ='Calcs-SI'!L64*'Calcs-Field'!$I$8^2 -> 0 | M64: ='Calcs-SI'!M64*'Calcs-Field'!$I$8^2 -> 0 | N64: ='Calcs-SI'!N64/'Calcs-Field'!$I$8 -> 0.06902928184 | O64: ='Calcs-SI'!O64/'Calcs-Field'!$I$8 -> -8.159412239e-05
A65: ='Calcs-SI'!A65*$I$8 -> 14.50377 | B65: ='Calcs-SI'!B65 -> 0.021864892 | C65: ='Calcs-SI'!C65 -> 0.9988144848 | D65: ='Calcs-SI'!D65*'Calcs-Field'!$I$11 -> 1.315381438 | E65: ='Calcs-SI'!E65/'Calcs-Field'!$I$11 -> 0.7602357547 | F65: ='Calcs-SI'!F65*'Calcs-Field'!$I$9 -> 0.04063595619 | G65: ='Calcs-SI'!G65 -> 0.0133607364 | H65: ='Calcs-SI'!H65 -> 0.01334489704 | I65: ='Calcs-SI'!I65*'Calcs-Field'!$I$8 -> 14.52098485 | J65: ='Calcs-SI'!J65*'Calcs-Field'!$I$8 -> 1086.840157 | K65: ='Calcs-SI'!K65 -> 56.9007375 | L65: ='Calcs-SI'!L65*'Calcs-Field'!$I$8^2 -> 0 | M65: ='Calcs-SI'!M65*'Calcs-Field'!$I$8^2 -> 0 | N65: ='Calcs-SI'!N65/'Calcs-Field'!$I$8 -> 0.06902928184 | O65: ='Calcs-SI'!O65/'Calcs-Field'!$I$8 -> -8.159412239e-05
A66: ='Calcs-SI'!A66*$I$8 -> 14.50377 | B66: ='Calcs-SI'!B66 -> 0.021864892 | C66: ='Calcs-SI'!C66 -> 0.9988144848 | D66: ='Calcs-SI'!D66*'Calcs-Field'!$I$11 -> 1.315381438 | E66: ='Calcs-SI'!E66/'Calcs-Field'!$I$11 -> 0.7602357547 | F66: ='Calcs-SI'!F66*'Calcs-Field'!$I$9 -> 0.04063595619 | G66: ='Calcs-SI'!G66 -> 0.0133607364 | H66: ='Calcs-SI'!H66 -> 0.01334489704 | I66: ='Calcs-SI'!I66*'Calcs-Field'!$I$8 -> 14.52098485 | J66: ='Calcs-SI'!J66*'Calcs-Field'!$I$8 -> 1086.840157 | K66: ='Calcs-SI'!K66 -> 56.9007375 | L66: ='Calcs-SI'!L66*'Calcs-Field'!$I$8^2 -> 0 | M66: ='Calcs-SI'!M66*'Calcs-Field'!$I$8^2 -> 0 | N66: ='Calcs-SI'!N66/'Calcs-Field'!$I$8 -> 0.06902928184 | O66: ='Calcs-SI'!O66/'Calcs-Field'!$I$8 -> -8.159412239e-05
A67: ='Calcs-SI'!A67*$I$8 -> 14.50377 | B67: ='Calcs-SI'!B67 -> 0.021864892 | C67: ='Calcs-SI'!C67 -> 0.9988144848 | D67: ='Calcs-SI'!D67*'Calcs-Field'!$I$11 -> 1.315381438 | E67: ='Calcs-SI'!E67/'Calcs-Field'!$I$11 -> 0.7602357547 | F67: ='Calcs-SI'!F67*'Calcs-Field'!$I$9 -> 0.04063595619 | G67: ='Calcs-SI'!G67 -> 0.0133607364 | H67: ='Calcs-SI'!H67 -> 0.01334489704 | I67: ='Calcs-SI'!I67*'Calcs-Field'!$I$8 -> 14.52098485 | J67: ='Calcs-SI'!J67*'Calcs-Field'!$I$8 -> 1086.840157 | K67: ='Calcs-SI'!K67 -> 56.9007375 | L67: ='Calcs-SI'!L67*'Calcs-Field'!$I$8^2 -> 0 | M67: ='Calcs-SI'!M67*'Calcs-Field'!$I$8^2 -> 0 | N67: ='Calcs-SI'!N67/'Calcs-Field'!$I$8 -> 0.06902928184 | O67: ='Calcs-SI'!O67/'Calcs-Field'!$I$8 -> -8.159412239e-05
A68: ='Calcs-SI'!A68*$I$8 -> 14.50377 | B68: ='Calcs-SI'!B68 -> 0.021864892 | C68: ='Calcs-SI'!C68 -> 0.9988144848 | D68: ='Calcs-SI'!D68*'Calcs-Field'!$I$11 -> 1.315381438 | E68: ='Calcs-SI'!E68/'Calcs-Field'!$I$11 -> 0.7602357547 | F68: ='Calcs-SI'!F68*'Calcs-Field'!$I$9 -> 0.04063595619 | G68: ='Calcs-SI'!G68 -> 0.0133607364 | H68: ='Calcs-SI'!H68 -> 0.01334489704 | I68: ='Calcs-SI'!I68*'Calcs-Field'!$I$8 -> 14.52098485 | J68: ='Calcs-SI'!J68*'Calcs-Field'!$I$8 -> 1086.840157 | K68: ='Calcs-SI'!K68 -> 56.9007375 | L68: ='Calcs-SI'!L68*'Calcs-Field'!$I$8^2 -> 0 | M68: ='Calcs-SI'!M68*'Calcs-Field'!$I$8^2 -> 0 | N68: ='Calcs-SI'!N68/'Calcs-Field'!$I$8 -> 0.06902928184 | O68: ='Calcs-SI'!O68/'Calcs-Field'!$I$8 -> -8.159412239e-05
A69: ='Calcs-SI'!A69*$I$8 -> 14.50377 | B69: ='Calcs-SI'!B69 -> 0.021864892 | C69: ='Calcs-SI'!C69 -> 0.9988144848 | D69: ='Calcs-SI'!D69*'Calcs-Field'!$I$11 -> 1.315381438 | E69: ='Calcs-SI'!E69/'Calcs-Field'!$I$11 -> 0.7602357547 | F69: ='Calcs-SI'!F69*'Calcs-Field'!$I$9 -> 0.04063595619 | G69: ='Calcs-SI'!G69 -> 0.0133607364 | H69: ='Calcs-SI'!H69 -> 0.01334489704 | I69: ='Calcs-SI'!I69*'Calcs-Field'!$I$8 -> 14.52098485 | J69: ='Calcs-SI'!J69*'Calcs-Field'!$I$8 -> 1086.840157 | K69: ='Calcs-SI'!K69 -> 56.9007375 | L69: ='Calcs-SI'!L69*'Calcs-Field'!$I$8^2 -> 0 | M69: ='Calcs-SI'!M69*'Calcs-Field'!$I$8^2 -> 0 | N69: ='Calcs-SI'!N69/'Calcs-Field'!$I$8 -> 0.06902928184 | O69: ='Calcs-SI'!O69/'Calcs-Field'!$I$8 -> -8.159412239e-05
A70: ='Calcs-SI'!A70*$I$8 -> 14.50377 | B70: ='Calcs-SI'!B70 -> 0.021864892 | C70: ='Calcs-SI'!C70 -> 0.9988144848 | D70: ='Calcs-SI'!D70*'Calcs-Field'!$I$11 -> 1.315381438 | E70: ='Calcs-SI'!E70/'Calcs-Field'!$I$11 -> 0.7602357547 | F70: ='Calcs-SI'!F70*'Calcs-Field'!$I$9 -> 0.04063595619 | G70: ='Calcs-SI'!G70 -> 0.0133607364 | H70: ='Calcs-SI'!H70 -> 0.01334489704 | I70: ='Calcs-SI'!I70*'Calcs-Field'!$I$8 -> 14.52098485 | J70: ='Calcs-SI'!J70*'Calcs-Field'!$I$8 -> 1086.840157 | K70: ='Calcs-SI'!K70 -> 56.9007375 | L70: ='Calcs-SI'!L70*'Calcs-Field'!$I$8^2 -> 0 | M70: ='Calcs-SI'!M70*'Calcs-Field'!$I$8^2 -> 0 | N70: ='Calcs-SI'!N70/'Calcs-Field'!$I$8 -> 0.06902928184 | O70: ='Calcs-SI'!O70/'Calcs-Field'!$I$8 -> -8.159412239e-05
A71: ='Calcs-SI'!A71*$I$8 -> 14.50377 | B71: ='Calcs-SI'!B71 -> 0.021864892 | C71: ='Calcs-SI'!C71 -> 0.9988144848 | D71: ='Calcs-SI'!D71*'Calcs-Field'!$I$11 -> 1.315381438 | E71: ='Calcs-SI'!E71/'Calcs-Field'!$I$11 -> 0.7602357547 | F71: ='Calcs-SI'!F71*'Calcs-Field'!$I$9 -> 0.04063595619 | G71: ='Calcs-SI'!G71 -> 0.0133607364 | H71: ='Calcs-SI'!H71 -> 0.01334489704 | I71: ='Calcs-SI'!I71*'Calcs-Field'!$I$8 -> 14.52098485 | J71: ='Calcs-SI'!J71*'Calcs-Field'!$I$8 -> 1086.840157 | K71: ='Calcs-SI'!K71 -> 56.9007375 | L71: ='Calcs-SI'!L71*'Calcs-Field'!$I$8^2 -> 0 | M71: ='Calcs-SI'!M71*'Calcs-Field'!$I$8^2 -> 0 | N71: ='Calcs-SI'!N71/'Calcs-Field'!$I$8 -> 0.06902928184 | O71: ='Calcs-SI'!O71/'Calcs-Field'!$I$8 -> -8.159412239e-05
A72: ='Calcs-SI'!A72*$I$8 -> 14.50377 | B72: ='Calcs-SI'!B72 -> 0.021864892 | C72: ='Calcs-SI'!C72 -> 0.9988144848 | D72: ='Calcs-SI'!D72*'Calcs-Field'!$I$11 -> 1.315381438 | E72: ='Calcs-SI'!E72/'Calcs-Field'!$I$11 -> 0.7602357547 | F72: ='Calcs-SI'!F72*'Calcs-Field'!$I$9 -> 0.04063595619 | G72: ='Calcs-SI'!G72 -> 0.0133607364 | H72: ='Calcs-SI'!H72 -> 0.01334489704 | I72: ='Calcs-SI'!I72*'Calcs-Field'!$I$8 -> 14.52098485 | J72: ='Calcs-SI'!J72*'Calcs-Field'!$I$8 -> 1086.840157 | K72: ='Calcs-SI'!K72 -> 56.9007375 | L72: ='Calcs-SI'!L72*'Calcs-Field'!$I$8^2 -> 0 | M72: ='Calcs-SI'!M72*'Calcs-Field'!$I$8^2 -> 0 | N72: ='Calcs-SI'!N72/'Calcs-Field'!$I$8 -> 0.06902928184 | O72: ='Calcs-SI'!O72/'Calcs-Field'!$I$8 -> -8.159412239e-05
A73: ='Calcs-SI'!A73*$I$8 -> 14.50377 | B73: ='Calcs-SI'!B73 -> 0.021864892 | C73: ='Calcs-SI'!C73 -> 0.9988144848 | D73: ='Calcs-SI'!D73*'Calcs-Field'!$I$11 -> 1.315381438 | E73: ='Calcs-SI'!E73/'Calcs-Field'!$I$11 -> 0.7602357547 | F73: ='Calcs-SI'!F73*'Calcs-Field'!$I$9 -> 0.04063595619 | G73: ='Calcs-SI'!G73 -> 0.0133607364 | H73: ='Calcs-SI'!H73 -> 0.01334489704 | I73: ='Calcs-SI'!I73*'Calcs-Field'!$I$8 -> 14.52098485 | J73: ='Calcs-SI'!J73*'Calcs-Field'!$I$8 -> 1086.840157 | K73: ='Calcs-SI'!K73 -> 56.9007375 | L73: ='Calcs-SI'!L73*'Calcs-Field'!$I$8^2 -> 0 | M73: ='Calcs-SI'!M73*'Calcs-Field'!$I$8^2 -> 0 | N73: ='Calcs-SI'!N73/'Calcs-Field'!$I$8 -> 0.06902928184 | O73: ='Calcs-SI'!O73/'Calcs-Field'!$I$8 -> -8.159412239e-05
A74: ='Calcs-SI'!A74*$I$8 -> 14.50377 | B74: ='Calcs-SI'!B74 -> 0.021864892 | C74: ='Calcs-SI'!C74 -> 0.9988144848 | D74: ='Calcs-SI'!D74*'Calcs-Field'!$I$11 -> 1.315381438 | E74: ='Calcs-SI'!E74/'Calcs-Field'!$I$11 -> 0.7602357547 | F74: ='Calcs-SI'!F74*'Calcs-Field'!$I$9 -> 0.04063595619 | G74: ='Calcs-SI'!G74 -> 0.0133607364 | H74: ='Calcs-SI'!H74 -> 0.01334489704 | I74: ='Calcs-SI'!I74*'Calcs-Field'!$I$8 -> 14.52098485 | J74: ='Calcs-SI'!J74*'Calcs-Field'!$I$8 -> 1086.840157 | K74: ='Calcs-SI'!K74 -> 56.9007375 | L74: ='Calcs-SI'!L74*'Calcs-Field'!$I$8^2 -> 0 | M74: ='Calcs-SI'!M74*'Calcs-Field'!$I$8^2 -> 0 | N74: ='Calcs-SI'!N74/'Calcs-Field'!$I$8 -> 0.06902928184 | O74: ='Calcs-SI'!O74/'Calcs-Field'!$I$8 -> -8.159412239e-05
A75: ='Calcs-SI'!A75*$I$8 -> 14.50377 | B75: ='Calcs-SI'!B75 -> 0.021864892 | C75: ='Calcs-SI'!C75 -> 0.9988144848 | D75: ='Calcs-SI'!D75*'Calcs-Field'!$I$11 -> 1.315381438 | E75: ='Calcs-SI'!E75/'Calcs-Field'!$I$11 -> 0.7602357547 | F75: ='Calcs-SI'!F75*'Calcs-Field'!$I$9 -> 0.04063595619 | G75: ='Calcs-SI'!G75 -> 0.0133607364 | H75: ='Calcs-SI'!H75 -> 0.01334489704 | I75: ='Calcs-SI'!I75*'Calcs-Field'!$I$8 -> 14.52098485 | J75: ='Calcs-SI'!J75*'Calcs-Field'!$I$8 -> 1086.840157 | K75: ='Calcs-SI'!K75 -> 56.9007375 | L75: ='Calcs-SI'!L75*'Calcs-Field'!$I$8^2 -> 0 | M75: ='Calcs-SI'!M75*'Calcs-Field'!$I$8^2 -> 0 | N75: ='Calcs-SI'!N75/'Calcs-Field'!$I$8 -> 0.06902928184 | O75: ='Calcs-SI'!O75/'Calcs-Field'!$I$8 -> -8.159412239e-05
A76: ='Calcs-SI'!A76*$I$8 -> 14.50377 | B76: ='Calcs-SI'!B76 -> 0.021864892 | C76: ='Calcs-SI'!C76 -> 0.9988144848 | D76: ='Calcs-SI'!D76*'Calcs-Field'!$I$11 -> 1.315381438 | E76: ='Calcs-SI'!E76/'Calcs-Field'!$I$11 -> 0.7602357547 | F76: ='Calcs-SI'!F76*'Calcs-Field'!$I$9 -> 0.04063595619 | G76: ='Calcs-SI'!G76 -> 0.0133607364 | H76: ='Calcs-SI'!H76 -> 0.01334489704 | I76: ='Calcs-SI'!I76*'Calcs-Field'!$I$8 -> 14.52098485 | J76: ='Calcs-SI'!J76*'Calcs-Field'!$I$8 -> 1086.840157 | K76: ='Calcs-SI'!K76 -> 56.9007375 | L76: ='Calcs-SI'!L76*'Calcs-Field'!$I$8^2 -> 0 | M76: ='Calcs-SI'!M76*'Calcs-Field'!$I$8^2 -> 0 | N76: ='Calcs-SI'!N76/'Calcs-Field'!$I$8 -> 0.06902928184 | O76: ='Calcs-SI'!O76/'Calcs-Field'!$I$8 -> -8.159412239e-05
A77: ='Calcs-SI'!A77*$I$8 -> 14.50377 | B77: ='Calcs-SI'!B77 -> 0.021864892 | C77: ='Calcs-SI'!C77 -> 0.9988144848 | D77: ='Calcs-SI'!D77*'Calcs-Field'!$I$11 -> 1.315381438 | E77: ='Calcs-SI'!E77/'Calcs-Field'!$I$11 -> 0.7602357547 | F77: ='Calcs-SI'!F77*'Calcs-Field'!$I$9 -> 0.04063595619 | G77: ='Calcs-SI'!G77 -> 0.0133607364 | H77: ='Calcs-SI'!H77 -> 0.01334489704 | I77: ='Calcs-SI'!I77*'Calcs-Field'!$I$8 -> 14.52098485 | J77: ='Calcs-SI'!J77*'Calcs-Field'!$I$8 -> 1086.840157 | K77: ='Calcs-SI'!K77 -> 56.9007375 | L77: ='Calcs-SI'!L77*'Calcs-Field'!$I$8^2 -> 0 | M77: ='Calcs-SI'!M77*'Calcs-Field'!$I$8^2 -> 0 | N77: ='Calcs-SI'!N77/'Calcs-Field'!$I$8 -> 0.06902928184 | O77: ='Calcs-SI'!O77/'Calcs-Field'!$I$8 -> -8.159412239e-05
A78: ='Calcs-SI'!A78*$I$8 -> 14.50377 | B78: ='Calcs-SI'!B78 -> 0.021864892 | C78: ='Calcs-SI'!C78 -> 0.9988144848 | D78: ='Calcs-SI'!D78*'Calcs-Field'!$I$11 -> 1.315381438 | E78: ='Calcs-SI'!E78/'Calcs-Field'!$I$11 -> 0.7602357547 | F78: ='Calcs-SI'!F78*'Calcs-Field'!$I$9 -> 0.04063595619 | G78: ='Calcs-SI'!G78 -> 0.0133607364 | H78: ='Calcs-SI'!H78 -> 0.01334489704 | I78: ='Calcs-SI'!I78*'Calcs-Field'!$I$8 -> 14.52098485 | J78: ='Calcs-SI'!J78*'Calcs-Field'!$I$8 -> 1086.840157 | K78: ='Calcs-SI'!K78 -> 56.9007375 | L78: ='Calcs-SI'!L78*'Calcs-Field'!$I$8^2 -> 0 | M78: ='Calcs-SI'!M78*'Calcs-Field'!$I$8^2 -> 0 | N78: ='Calcs-SI'!N78/'Calcs-Field'!$I$8 -> 0.06902928184 | O78: ='Calcs-SI'!O78/'Calcs-Field'!$I$8 -> -8.159412239e-05
A79: ='Calcs-SI'!A79*$I$8 -> 14.50377 | B79: ='Calcs-SI'!B79 -> 0.021864892 | C79: ='Calcs-SI'!C79 -> 0.9988144848 | D79: ='Calcs-SI'!D79*'Calcs-Field'!$I$11 -> 1.315381438 | E79: ='Calcs-SI'!E79/'Calcs-Field'!$I$11 -> 0.7602357547 | F79: ='Calcs-SI'!F79*'Calcs-Field'!$I$9 -> 0.04063595619 | G79: ='Calcs-SI'!G79 -> 0.0133607364 | H79: ='Calcs-SI'!H79 -> 0.01334489704 | I79: ='Calcs-SI'!I79*'Calcs-Field'!$I$8 -> 14.52098485 | J79: ='Calcs-SI'!J79*'Calcs-Field'!$I$8 -> 1086.840157 | K79: ='Calcs-SI'!K79 -> 56.9007375 | L79: ='Calcs-SI'!L79*'Calcs-Field'!$I$8^2 -> 0 | M79: ='Calcs-SI'!M79*'Calcs-Field'!$I$8^2 -> 0 | N79: ='Calcs-SI'!N79/'Calcs-Field'!$I$8 -> 0.06902928184 | O79: ='Calcs-SI'!O79/'Calcs-Field'!$I$8 -> -8.159412239e-05
A80: ='Calcs-SI'!A80*$I$8 -> 14.50377 | B80: ='Calcs-SI'!B80 -> 0.021864892 | C80: ='Calcs-SI'!C80 -> 0.9988144848 | D80: ='Calcs-SI'!D80*'Calcs-Field'!$I$11 -> 1.315381438 | E80: ='Calcs-SI'!E80/'Calcs-Field'!$I$11 -> 0.7602357547 | F80: ='Calcs-SI'!F80*'Calcs-Field'!$I$9 -> 0.04063595619 | G80: ='Calcs-SI'!G80 -> 0.0133607364 | H80: ='Calcs-SI'!H80 -> 0.01334489704 | I80: ='Calcs-SI'!I80*'Calcs-Field'!$I$8 -> 14.52098485 | J80: ='Calcs-SI'!J80*'Calcs-Field'!$I$8 -> 1086.840157 | K80: ='Calcs-SI'!K80 -> 56.9007375 | L80: ='Calcs-SI'!L80*'Calcs-Field'!$I$8^2 -> 0 | M80: ='Calcs-SI'!M80*'Calcs-Field'!$I$8^2 -> 0 | N80: ='Calcs-SI'!N80/'Calcs-Field'!$I$8 -> 0.06902928184 | O80: ='Calcs-SI'!O80/'Calcs-Field'!$I$8 -> -8.159412239e-05
A81: ='Calcs-SI'!A81*$I$8 -> 14.50377 | B81: ='Calcs-SI'!B81 -> 0.021864892 | C81: ='Calcs-SI'!C81 -> 0.9988144848 | D81: ='Calcs-SI'!D81*'Calcs-Field'!$I$11 -> 1.315381438 | E81: ='Calcs-SI'!E81/'Calcs-Field'!$I$11 -> 0.7602357547 | F81: ='Calcs-SI'!F81*'Calcs-Field'!$I$9 -> 0.04063595619 | G81: ='Calcs-SI'!G81 -> 0.0133607364 | H81: ='Calcs-SI'!H81 -> 0.01334489704 | I81: ='Calcs-SI'!I81*'Calcs-Field'!$I$8 -> 14.52098485 | J81: ='Calcs-SI'!J81*'Calcs-Field'!$I$8 -> 1086.840157 | K81: ='Calcs-SI'!K81 -> 56.9007375 | L81: ='Calcs-SI'!L81*'Calcs-Field'!$I$8^2 -> 0 | M81: ='Calcs-SI'!M81*'Calcs-Field'!$I$8^2 -> 0 | N81: ='Calcs-SI'!N81/'Calcs-Field'!$I$8 -> 0.06902928184 | O81: ='Calcs-SI'!O81/'Calcs-Field'!$I$8 -> -8.159412239e-05
A82: ='Calcs-SI'!A82*$I$8 -> 14.50377 | B82: ='Calcs-SI'!B82 -> 0.021864892 | C82: ='Calcs-SI'!C82 -> 0.9988144848 | D82: ='Calcs-SI'!D82*'Calcs-Field'!$I$11 -> 1.315381438 | E82: ='Calcs-SI'!E82/'Calcs-Field'!$I$11 -> 0.7602357547 | F82: ='Calcs-SI'!F82*'Calcs-Field'!$I$9 -> 0.04063595619 | G82: ='Calcs-SI'!G82 -> 0.0133607364 | H82: ='Calcs-SI'!H82 -> 0.01334489704 | I82: ='Calcs-SI'!I82*'Calcs-Field'!$I$8 -> 14.52098485 | J82: ='Calcs-SI'!J82*'Calcs-Field'!$I$8 -> 1086.840157 | K82: ='Calcs-SI'!K82 -> 56.9007375 | L82: ='Calcs-SI'!L82*'Calcs-Field'!$I$8^2 -> 0 | M82: ='Calcs-SI'!M82*'Calcs-Field'!$I$8^2 -> 0 | N82: ='Calcs-SI'!N82/'Calcs-Field'!$I$8 -> 0.06902928184 | O82: ='Calcs-SI'!O82/'Calcs-Field'!$I$8 -> -8.159412239e-05
A83: ='Calcs-SI'!A83*$I$8 -> 14.50377 | B83: ='Calcs-SI'!B83 -> 0.021864892 | C83: ='Calcs-SI'!C83 -> 0.9988144848 | D83: ='Calcs-SI'!D83*'Calcs-Field'!$I$11 -> 1.315381438 | E83: ='Calcs-SI'!E83/'Calcs-Field'!$I$11 -> 0.7602357547 | F83: ='Calcs-SI'!F83*'Calcs-Field'!$I$9 -> 0.04063595619 | G83: ='Calcs-SI'!G83 -> 0.0133607364 | H83: ='Calcs-SI'!H83 -> 0.01334489704 | I83: ='Calcs-SI'!I83*'Calcs-Field'!$I$8 -> 14.52098485 | J83: ='Calcs-SI'!J83*'Calcs-Field'!$I$8 -> 1086.840157 | K83: ='Calcs-SI'!K83 -> 56.9007375 | L83: ='Calcs-SI'!L83*'Calcs-Field'!$I$8^2 -> 0 | M83: ='Calcs-SI'!M83*'Calcs-Field'!$I$8^2 -> 0 | N83: ='Calcs-SI'!N83/'Calcs-Field'!$I$8 -> 0.06902928184 | O83: ='Calcs-SI'!O83/'Calcs-Field'!$I$8 -> -8.159412239e-05
A84: ='Calcs-SI'!A84*$I$8 -> 14.50377 | B84: ='Calcs-SI'!B84 -> 0.021864892 | C84: ='Calcs-SI'!C84 -> 0.9988144848 | D84: ='Calcs-SI'!D84*'Calcs-Field'!$I$11 -> 1.315381438 | E84: ='Calcs-SI'!E84/'Calcs-Field'!$I$11 -> 0.7602357547 | F84: ='Calcs-SI'!F84*'Calcs-Field'!$I$9 -> 0.04063595619 | G84: ='Calcs-SI'!G84 -> 0.0133607364 | H84: ='Calcs-SI'!H84 -> 0.01334489704 | I84: ='Calcs-SI'!I84*'Calcs-Field'!$I$8 -> 14.52098485 | J84: ='Calcs-SI'!J84*'Calcs-Field'!$I$8 -> 1086.840157 | K84: ='Calcs-SI'!K84 -> 56.9007375 | L84: ='Calcs-SI'!L84*'Calcs-Field'!$I$8^2 -> 0 | M84: ='Calcs-SI'!M84*'Calcs-Field'!$I$8^2 -> 0 | N84: ='Calcs-SI'!N84/'Calcs-Field'!$I$8 -> 0.06902928184 | O84: ='Calcs-SI'!O84/'Calcs-Field'!$I$8 -> -8.159412239e-05
A85: ='Calcs-SI'!A85*$I$8 -> 14.50377 | B85: ='Calcs-SI'!B85 -> 0.021864892 | C85: ='Calcs-SI'!C85 -> 0.9988144848 | D85: ='Calcs-SI'!D85*'Calcs-Field'!$I$11 -> 1.315381438 | E85: ='Calcs-SI'!E85/'Calcs-Field'!$I$11 -> 0.7602357547 | F85: ='Calcs-SI'!F85*'Calcs-Field'!$I$9 -> 0.04063595619 | G85: ='Calcs-SI'!G85 -> 0.0133607364 | H85: ='Calcs-SI'!H85 -> 0.01334489704 | I85: ='Calcs-SI'!I85*'Calcs-Field'!$I$8 -> 14.52098485 | J85: ='Calcs-SI'!J85*'Calcs-Field'!$I$8 -> 1086.840157 | K85: ='Calcs-SI'!K85 -> 56.9007375 | L85: ='Calcs-SI'!L85*'Calcs-Field'!$I$8^2 -> 0 | M85: ='Calcs-SI'!M85*'Calcs-Field'!$I$8^2 -> 0 | N85: ='Calcs-SI'!N85/'Calcs-Field'!$I$8 -> 0.06902928184 | O85: ='Calcs-SI'!O85/'Calcs-Field'!$I$8 -> -8.159412239e-05
A86: ='Calcs-SI'!A86*$I$8 -> 14.50377 | B86: ='Calcs-SI'!B86 -> 0.021864892 | C86: ='Calcs-SI'!C86 -> 0.9988144848 | D86: ='Calcs-SI'!D86*'Calcs-Field'!$I$11 -> 1.315381438 | E86: ='Calcs-SI'!E86/'Calcs-Field'!$I$11 -> 0.7602357547 | F86: ='Calcs-SI'!F86*'Calcs-Field'!$I$9 -> 0.04063595619 | G86: ='Calcs-SI'!G86 -> 0.0133607364 | H86: ='Calcs-SI'!H86 -> 0.01334489704 | I86: ='Calcs-SI'!I86*'Calcs-Field'!$I$8 -> 14.52098485 | J86: ='Calcs-SI'!J86*'Calcs-Field'!$I$8 -> 1086.840157 | K86: ='Calcs-SI'!K86 -> 56.9007375 | L86: ='Calcs-SI'!L86*'Calcs-Field'!$I$8^2 -> 0 | M86: ='Calcs-SI'!M86*'Calcs-Field'!$I$8^2 -> 0 | N86: ='Calcs-SI'!N86/'Calcs-Field'!$I$8 -> 0.06902928184 | O86: ='Calcs-SI'!O86/'Calcs-Field'!$I$8 -> -8.159412239e-05
A87: ='Calcs-SI'!A87*$I$8 -> 14.50377 | B87: ='Calcs-SI'!B87 -> 0.021864892 | C87: ='Calcs-SI'!C87 -> 0.9988144848 | D87: ='Calcs-SI'!D87*'Calcs-Field'!$I$11 -> 1.315381438 | E87: ='Calcs-SI'!E87/'Calcs-Field'!$I$11 -> 0.7602357547 | F87: ='Calcs-SI'!F87*'Calcs-Field'!$I$9 -> 0.04063595619 | G87: ='Calcs-SI'!G87 -> 0.0133607364 | H87: ='Calcs-SI'!H87 -> 0.01334489704 | I87: ='Calcs-SI'!I87*'Calcs-Field'!$I$8 -> 14.52098485 | J87: ='Calcs-SI'!J87*'Calcs-Field'!$I$8 -> 1086.840157 | K87: ='Calcs-SI'!K87 -> 56.9007375 | L87: ='Calcs-SI'!L87*'Calcs-Field'!$I$8^2 -> 0 | M87: ='Calcs-SI'!M87*'Calcs-Field'!$I$8^2 -> 0 | N87: ='Calcs-SI'!N87/'Calcs-Field'!$I$8 -> 0.06902928184 | O87: ='Calcs-SI'!O87/'Calcs-Field'!$I$8 -> -8.159412239e-05
A88: ='Calcs-SI'!A88*$I$8 -> 14.50377 | B88: ='Calcs-SI'!B88 -> 0.021864892 | C88: ='Calcs-SI'!C88 -> 0.9988144848 | D88: ='Calcs-SI'!D88*'Calcs-Field'!$I$11 -> 1.315381438 | E88: ='Calcs-SI'!E88/'Calcs-Field'!$I$11 -> 0.7602357547 | F88: ='Calcs-SI'!F88*'Calcs-Field'!$I$9 -> 0.04063595619 | G88: ='Calcs-SI'!G88 -> 0.0133607364 | H88: ='Calcs-SI'!H88 -> 0.01334489704 | I88: ='Calcs-SI'!I88*'Calcs-Field'!$I$8 -> 14.52098485 | J88: ='Calcs-SI'!J88*'Calcs-Field'!$I$8 -> 1086.840157 | K88: ='Calcs-SI'!K88 -> 56.9007375 | L88: ='Calcs-SI'!L88*'Calcs-Field'!$I$8^2 -> 0 | M88: ='Calcs-SI'!M88*'Calcs-Field'!$I$8^2 -> 0 | N88: ='Calcs-SI'!N88/'Calcs-Field'!$I$8 -> 0.06902928184 | O88: ='Calcs-SI'!O88/'Calcs-Field'!$I$8 -> -8.159412239e-05
A89: ='Calcs-SI'!A89*$I$8 -> 14.50377 | B89: ='Calcs-SI'!B89 -> 0.021864892 | C89: ='Calcs-SI'!C89 -> 0.9988144848 | D89: ='Calcs-SI'!D89*'Calcs-Field'!$I$11 -> 1.315381438 | E89: ='Calcs-SI'!E89/'Calcs-Field'!$I$11 -> 0.7602357547 | F89: ='Calcs-SI'!F89*'Calcs-Field'!$I$9 -> 0.04063595619 | G89: ='Calcs-SI'!G89 -> 0.0133607364 | H89: ='Calcs-SI'!H89 -> 0.01334489704 | I89: ='Calcs-SI'!I89*'Calcs-Field'!$I$8 -> 14.52098485 | J89: ='Calcs-SI'!J89*'Calcs-Field'!$I$8 -> 1086.840157 | K89: ='Calcs-SI'!K89 -> 56.9007375 | L89: ='Calcs-SI'!L89*'Calcs-Field'!$I$8^2 -> 0 | M89: ='Calcs-SI'!M89*'Calcs-Field'!$I$8^2 -> 0 | N89: ='Calcs-SI'!N89/'Calcs-Field'!$I$8 -> 0.06902928184 | O89: ='Calcs-SI'!O89/'Calcs-Field'!$I$8 -> -8.159412239e-05
A90: ='Calcs-SI'!A90*$I$8 -> 14.50377 | B90: ='Calcs-SI'!B90 -> 0.021864892 | C90: ='Calcs-SI'!C90 -> 0.9988144848 | D90: ='Calcs-SI'!D90*'Calcs-Field'!$I$11 -> 1.315381438 | E90: ='Calcs-SI'!E90/'Calcs-Field'!$I$11 -> 0.7602357547 | F90: ='Calcs-SI'!F90*'Calcs-Field'!$I$9 -> 0.04063595619 | G90: ='Calcs-SI'!G90 -> 0.0133607364 | H90: ='Calcs-SI'!H90 -> 0.01334489704 | I90: ='Calcs-SI'!I90*'Calcs-Field'!$I$8 -> 14.52098485 | J90: ='Calcs-SI'!J90*'Calcs-Field'!$I$8 -> 1086.840157 | K90: ='Calcs-SI'!K90 -> 56.9007375 | L90: ='Calcs-SI'!L90*'Calcs-Field'!$I$8^2 -> 0 | M90: ='Calcs-SI'!M90*'Calcs-Field'!$I$8^2 -> 0 | N90: ='Calcs-SI'!N90/'Calcs-Field'!$I$8 -> 0.06902928184 | O90: ='Calcs-SI'!O90/'Calcs-Field'!$I$8 -> -8.159412239e-05
A91: ='Calcs-SI'!A91*$I$8 -> 14.50377 | B91: ='Calcs-SI'!B91 -> 0.021864892 | C91: ='Calcs-SI'!C91 -> 0.9988144848 | D91: ='Calcs-SI'!D91*'Calcs-Field'!$I$11 -> 1.315381438 | E91: ='Calcs-SI'!E91/'Calcs-Field'!$I$11 -> 0.7602357547 | F91: ='Calcs-SI'!F91*'Calcs-Field'!$I$9 -> 0.04063595619 | G91: ='Calcs-SI'!G91 -> 0.0133607364 | H91: ='Calcs-SI'!H91 -> 0.01334489704 | I91: ='Calcs-SI'!I91*'Calcs-Field'!$I$8 -> 14.52098485 | J91: ='Calcs-SI'!J91*'Calcs-Field'!$I$8 -> 1086.840157 | K91: ='Calcs-SI'!K91 -> 56.9007375 | L91: ='Calcs-SI'!L91*'Calcs-Field'!$I$8^2 -> 0 | M91: ='Calcs-SI'!M91*'Calcs-Field'!$I$8^2 -> 0 | N91: ='Calcs-SI'!N91/'Calcs-Field'!$I$8 -> 0.06902928184 | O91: ='Calcs-SI'!O91/'Calcs-Field'!$I$8 -> -8.159412239e-05
A92: ='Calcs-SI'!A92*$I$8 -> 14.50377 | B92: ='Calcs-SI'!B92 -> 0.021864892 | C92: ='Calcs-SI'!C92 -> 0.9988144848 | D92: ='Calcs-SI'!D92*'Calcs-Field'!$I$11 -> 1.315381438 | E92: ='Calcs-SI'!E92/'Calcs-Field'!$I$11 -> 0.7602357547 | F92: ='Calcs-SI'!F92*'Calcs-Field'!$I$9 -> 0.04063595619 | G92: ='Calcs-SI'!G92 -> 0.0133607364 | H92: ='Calcs-SI'!H92 -> 0.01334489704 | I92: ='Calcs-SI'!I92*'Calcs-Field'!$I$8 -> 14.52098485 | J92: ='Calcs-SI'!J92*'Calcs-Field'!$I$8 -> 1086.840157 | K92: ='Calcs-SI'!K92 -> 56.9007375 | L92: ='Calcs-SI'!L92*'Calcs-Field'!$I$8^2 -> 0 | M92: ='Calcs-SI'!M92*'Calcs-Field'!$I$8^2 -> 0 | N92: ='Calcs-SI'!N92/'Calcs-Field'!$I$8 -> 0.06902928184 | O92: ='Calcs-SI'!O92/'Calcs-Field'!$I$8 -> -8.159412239e-05
A93: ='Calcs-SI'!A93*$I$8 -> 14.50377 | B93: ='Calcs-SI'!B93 -> 0.021864892 | C93: ='Calcs-SI'!C93 -> 0.9988144848 | D93: ='Calcs-SI'!D93*'Calcs-Field'!$I$11 -> 1.315381438 | E93: ='Calcs-SI'!E93/'Calcs-Field'!$I$11 -> 0.7602357547 | F93: ='Calcs-SI'!F93*'Calcs-Field'!$I$9 -> 0.04063595619 | G93: ='Calcs-SI'!G93 -> 0.0133607364 | H93: ='Calcs-SI'!H93 -> 0.01334489704 | I93: ='Calcs-SI'!I93*'Calcs-Field'!$I$8 -> 14.52098485 | J93: ='Calcs-SI'!J93*'Calcs-Field'!$I$8 -> 1086.840157 | K93: ='Calcs-SI'!K93 -> 56.9007375 | L93: ='Calcs-SI'!L93*'Calcs-Field'!$I$8^2 -> 0 | M93: ='Calcs-SI'!M93*'Calcs-Field'!$I$8^2 -> 0 | N93: ='Calcs-SI'!N93/'Calcs-Field'!$I$8 -> 0.06902928184 | O93: ='Calcs-SI'!O93/'Calcs-Field'!$I$8 -> -8.159412239e-05
A94: ='Calcs-SI'!A94*$I$8 -> 14.50377 | B94: ='Calcs-SI'!B94 -> 0.021864892 | C94: ='Calcs-SI'!C94 -> 0.9988144848 | D94: ='Calcs-SI'!D94*'Calcs-Field'!$I$11 -> 1.315381438 | E94: ='Calcs-SI'!E94/'Calcs-Field'!$I$11 -> 0.7602357547 | F94: ='Calcs-SI'!F94*'Calcs-Field'!$I$9 -> 0.04063595619 | G94: ='Calcs-SI'!G94 -> 0.0133607364 | H94: ='Calcs-SI'!H94 -> 0.01334489704 | I94: ='Calcs-SI'!I94*'Calcs-Field'!$I$8 -> 14.52098485 | J94: ='Calcs-SI'!J94*'Calcs-Field'!$I$8 -> 1086.840157 | K94: ='Calcs-SI'!K94 -> 56.9007375 | L94: ='Calcs-SI'!L94*'Calcs-Field'!$I$8^2 -> 0 | M94: ='Calcs-SI'!M94*'Calcs-Field'!$I$8^2 -> 0 | N94: ='Calcs-SI'!N94/'Calcs-Field'!$I$8 -> 0.06902928184 | O94: ='Calcs-SI'!O94/'Calcs-Field'!$I$8 -> -8.159412239e-05
A95: ='Calcs-SI'!A95*$I$8 -> 14.50377 | B95: ='Calcs-SI'!B95 -> 0.021864892 | C95: ='Calcs-SI'!C95 -> 0.9988144848 | D95: ='Calcs-SI'!D95*'Calcs-Field'!$I$11 -> 1.315381438 | E95: ='Calcs-SI'!E95/'Calcs-Field'!$I$11 -> 0.7602357547 | F95: ='Calcs-SI'!F95*'Calcs-Field'!$I$9 -> 0.04063595619 | G95: ='Calcs-SI'!G95 -> 0.0133607364 | H95: ='Calcs-SI'!H95 -> 0.01334489704 | I95: ='Calcs-SI'!I95*'Calcs-Field'!$I$8 -> 14.52098485 | J95: ='Calcs-SI'!J95*'Calcs-Field'!$I$8 -> 1086.840157 | K95: ='Calcs-SI'!K95 -> 56.9007375 | L95: ='Calcs-SI'!L95*'Calcs-Field'!$I$8^2 -> 0 | M95: ='Calcs-SI'!M95*'Calcs-Field'!$I$8^2 -> 0 | N95: ='Calcs-SI'!N95/'Calcs-Field'!$I$8 -> 0.06902928184 | O95: ='Calcs-SI'!O95/'Calcs-Field'!$I$8 -> -8.159412239e-05
A96: ='Calcs-SI'!A96*$I$8 -> 14.50377 | B96: ='Calcs-SI'!B96 -> 0.021864892 | C96: ='Calcs-SI'!C96 -> 0.9988144848 | D96: ='Calcs-SI'!D96*'Calcs-Field'!$I$11 -> 1.315381438 | E96: ='Calcs-SI'!E96/'Calcs-Field'!$I$11 -> 0.7602357547 | F96: ='Calcs-SI'!F96*'Calcs-Field'!$I$9 -> 0.04063595619 | G96: ='Calcs-SI'!G96 -> 0.0133607364 | H96: ='Calcs-SI'!H96 -> 0.01334489704 | I96: ='Calcs-SI'!I96*'Calcs-Field'!$I$8 -> 14.52098485 | J96: ='Calcs-SI'!J96*'Calcs-Field'!$I$8 -> 1086.840157 | K96: ='Calcs-SI'!K96 -> 56.9007375 | L96: ='Calcs-SI'!L96*'Calcs-Field'!$I$8^2 -> 0 | M96: ='Calcs-SI'!M96*'Calcs-Field'!$I$8^2 -> 0 | N96: ='Calcs-SI'!N96/'Calcs-Field'!$I$8 -> 0.06902928184 | O96: ='Calcs-SI'!O96/'Calcs-Field'!$I$8 -> -8.159412239e-05
A97: ='Calcs-SI'!A97*$I$8 -> 14.50377 | B97: ='Calcs-SI'!B97 -> 0.021864892 | C97: ='Calcs-SI'!C97 -> 0.9988144848 | D97: ='Calcs-SI'!D97*'Calcs-Field'!$I$11 -> 1.315381438 | E97: ='Calcs-SI'!E97/'Calcs-Field'!$I$11 -> 0.7602357547 | F97: ='Calcs-SI'!F97*'Calcs-Field'!$I$9 -> 0.04063595619 | G97: ='Calcs-SI'!G97 -> 0.0133607364 | H97: ='Calcs-SI'!H97 -> 0.01334489704 | I97: ='Calcs-SI'!I97*'Calcs-Field'!$I$8 -> 14.52098485 | J97: ='Calcs-SI'!J97*'Calcs-Field'!$I$8 -> 1086.840157 | K97: ='Calcs-SI'!K97 -> 56.9007375 | L97: ='Calcs-SI'!L97*'Calcs-Field'!$I$8^2 -> 0 | M97: ='Calcs-SI'!M97*'Calcs-Field'!$I$8^2 -> 0 | N97: ='Calcs-SI'!N97/'Calcs-Field'!$I$8 -> 0.06902928184 | O97: ='Calcs-SI'!O97/'Calcs-Field'!$I$8 -> -8.159412239e-05
A98: ='Calcs-SI'!A98*$I$8 -> 14.50377 | B98: ='Calcs-SI'!B98 -> 0.021864892 | C98: ='Calcs-SI'!C98 -> 0.9988144848 | D98: ='Calcs-SI'!D98*'Calcs-Field'!$I$11 -> 1.315381438 | E98: ='Calcs-SI'!E98/'Calcs-Field'!$I$11 -> 0.7602357547 | F98: ='Calcs-SI'!F98*'Calcs-Field'!$I$9 -> 0.04063595619 | G98: ='Calcs-SI'!G98 -> 0.0133607364 | H98: ='Calcs-SI'!H98 -> 0.01334489704 | I98: ='Calcs-SI'!I98*'Calcs-Field'!$I$8 -> 14.52098485 | J98: ='Calcs-SI'!J98*'Calcs-Field'!$I$8 -> 1086.840157 | K98: ='Calcs-SI'!K98 -> 56.9007375 | L98: ='Calcs-SI'!L98*'Calcs-Field'!$I$8^2 -> 0 | M98: ='Calcs-SI'!M98*'Calcs-Field'!$I$8^2 -> 0 | N98: ='Calcs-SI'!N98/'Calcs-Field'!$I$8 -> 0.06902928184 | O98: ='Calcs-SI'!O98/'Calcs-Field'!$I$8 -> -8.159412239e-05
A99: ='Calcs-SI'!A99*$I$8 -> 14.50377 | B99: ='Calcs-SI'!B99 -> 0.021864892 | C99: ='Calcs-SI'!C99 -> 0.9988144848 | D99: ='Calcs-SI'!D99*'Calcs-Field'!$I$11 -> 1.315381438 | E99: ='Calcs-SI'!E99/'Calcs-Field'!$I$11 -> 0.7602357547 | F99: ='Calcs-SI'!F99*'Calcs-Field'!$I$9 -> 0.04063595619 | G99: ='Calcs-SI'!G99 -> 0.0133607364 | H99: ='Calcs-SI'!H99 -> 0.01334489704 | I99: ='Calcs-SI'!I99*'Calcs-Field'!$I$8 -> 14.52098485 | J99: ='Calcs-SI'!J99*'Calcs-Field'!$I$8 -> 1086.840157 | K99: ='Calcs-SI'!K99 -> 56.9007375 | L99: ='Calcs-SI'!L99*'Calcs-Field'!$I$8^2 -> 0 | M99: ='Calcs-SI'!M99*'Calcs-Field'!$I$8^2 -> 0 | N99: ='Calcs-SI'!N99/'Calcs-Field'!$I$8 -> 0.06902928184 | O99: ='Calcs-SI'!O99/'Calcs-Field'!$I$8 -> -8.159412239e-05
A100: ='Calcs-SI'!A100*$I$8 -> 14.50377 | B100: ='Calcs-SI'!B100 -> 0.021864892 | C100: ='Calcs-SI'!C100 -> 0.9988144848 | D100: ='Calcs-SI'!D100*'Calcs-Field'!$I$11 -> 1.315381438 | E100: ='Calcs-SI'!E100/'Calcs-Field'!$I$11 -> 0.7602357547 | F100: ='Calcs-SI'!F100*'Calcs-Field'!$I$9 -> 0.04063595619 | G100: ='Calcs-SI'!G100 -> 0.0133607364 | H100: ='Calcs-SI'!H100 -> 0.01334489704 | I100: ='Calcs-SI'!I100*'Calcs-Field'!$I$8 -> 14.52098485 | J100: ='Calcs-SI'!J100*'Calcs-Field'!$I$8 -> 1086.840157 | K100: ='Calcs-SI'!K100 -> 56.9007375 | L100: ='Calcs-SI'!L100*'Calcs-Field'!$I$8^2 -> 0 | M100: ='Calcs-SI'!M100*'Calcs-Field'!$I$8^2 -> 0 | N100: ='Calcs-SI'!N100/'Calcs-Field'!$I$8 -> 0.06902928184 | O100: ='Calcs-SI'!O100/'Calcs-Field'!$I$8 -> -8.159412239e-05
